Workbook

Sheet Guidance
A2: We only include cities in this Pipeline, which have made a commitment to reduce its GHG emissions in 2020 or later.
A3: We found thes commitments in the data on the homepages of:
A4: Carbon Disclosure Project (CDP) - for cities and for regions (Compact of States and Regions) at https://data.cdp.net/
A5: C40 at http://www.c40.org/cities
A6: Under 2 MOU at http://under2mou.org/?page_id=238
A7: Carbonn at http://carbonn.org/data/
A8: Carbon Neutral Cities Alliance (CNCA) at http://usdn.org/public/page/13/CNCA
A9: Compact of Mayors at http://www.compactofmayors.org/
A10: Hinku municipality (in Finland) at http://www.hinku-foorumi.fi/en-US
A11: Japan for Sustainability at http://www.japanfs.org/en/news/archives/news_id032745.html
A12: Covenant of Mayors, Sustainable Energy Action Plan (SEAP) at http://www.covenantofmayors.eu/actions/sustainable-energy-action-plans_en.html
A13: Here we used the following selection criteria:
A14: Only cities from Covenant of Mayors with GHG reduction targets of 25% or more are included in the list (in order to handle the large amount of cities).
A15: We however include cities with a higher post 2020 goal.
A16: Cities or regions a reduction target but no baseline are not included in the list
A17: If GHG emissions are not given for the correct but for another, year this values is used.
A19: Since the purpose of the CitiesAndRegionsPipeline is to see if sub-national entities pledge higher reduction than their countries
A20: EU city signatories to Covenant of Mayors goal are not included in the list besause they just promise forllow the EU reduction goals.
A21: Signatories to Covenant of mayors outside EU are included: Algeria, Azerbeijan, Belarus, Bosnia-Herzegovina, Georgia, Kazakhstan, Macedonia, Moldova,
A22: - Montenegro, Morocco, New Zealand, Norway, Palestine, Serbia, Switzerland, Tajikistan, Turkey, Ukraine
A24: If a city is lying in a region with a commitment for 2020, its reduction only counts with the axtra % reduction it has compared to the region.

Sheet Cities and regions
A1: The PledgePipeline was produced by Jørgen Fenhann, UNEP DTU Partnership, 10. May 2016 , jqfe@dtu.dk, Phone (+45)40202789
F2: First year | I2: second year | L2: Third year | O2: Last year | R2: 2020 BAU | AA2: 2025 BAU | AJ2: 2030 BAU | AS2: 2035 BAU | BB2: 2040 BAU | BK2: 2050 BAU
F3: Year | G3: incl LULUCF | H3: excl LULUCF | I3: Year | J3: incl LULUCF | K3: excl LULUCF | L3: Year | M3: incl LULUCF | N3: excl LULUCF | O3: Year | P3: incl LULUCF | Q3: excl LULUCF | R3: incl LULUCF | S3: excl LULUCF | AA3: incl LULUCF | AB3: excl LULUCF | AJ3: incl LULUCF | AK3: excl LULUCF | AS3: incl LULUCF | AT3: excl LULUCF | BB3: incl LULUCF | BC3: excl LULUCF | BK3: incl LULUCF | BL3: excl LULUCF
A4: Country or Group of Countries | E4: Historic GHG Source | G4: 1990 MtCO2eq | J4: 2005 MtCO2eq | M4: 2010 MtCO2eq | P4: 2013 MtCO2eq | R4: 2020 MtCO2eq | T4: 2020 GtCO2eq with reductions | V4: Base year of the pledge | W4: BAU GHGs in pledge Base year GtCO2eq incl. LULUCF | X4: BAU GHGs in pledge Base year GtCO2eq excl. LULUCF | Y4: Pledges for 2020 compared to base year(%) | AA4: 2025 GtCO2 | AC4: 2025 GtCO2eq with reductions | AE4: Base year of the pledge | AF4: BAU GHGs in pledge Base year GtCO2eq incl. LULUCF | AG4: BAU GHGs in pledge Base year GtCO2eq excl. LULUCF | AH4: Pledges for 2025 compared to base year(%) | AJ4: 2030 GtCO2 | AL4: 2030 GtCO2eq with reductions | AN4: Base year of the pledge | AO4: BAU GHGs in pledge Base year GtCO2eq incl. LULUCF | AP4: BAU GHGs in pledge Base year GtCO2eq excl. LULUCF | AQ4: Pledges for 2030 compared to base year(%) | AS4: 2035 GtCO2 | AU4: 2035 GtCO2eq with reductions | AW4: Base year of the pledge | AX4: BAU GHGs in pledge Base year GtCO2eq incl. LULUCF | AY4: BAU GHGs in pledge Base year GtCO2eq excl. LULUCF | AZ4: Pledges for 2035 compared to base year(%) | BB4: 2040 GtCO2 | BD4: 2040 GtCO2eq with reductions | BF4: Base year of the pledge | BG4: BAU GHGs in pledge Base year GtCO2eq incl. LULUCF | BH4: BAU GHGs in pledge Base year GtCO2eq excl. LULUCF | BI4: Pledges for 2040 compared to base year(%) | BK4: 2050 GtCO2 | BM4: 2050 GtCO2eq with reductions | BO4: Base year of the pledge | BP4: BAU GHGs in pledge Base year GtCO2eq incl. LULUCF | BQ4: BAU GHGs in pledge Base year GtCO2eq excl. LULUCF | BR4: Pledges for 2050 compared to base year(%) | BT4: Source of projections | BU4: Data details | BV4: Source of the data
A5: Global aggregate GHG emissions | B5: Region | C5: City | D5: Population in 2010 thousands | AA5: incl LULUCF | AB5: excl LULUCF | AJ5: incl LULUCF | AK5: excl LULUCF | AS5: incl LULUCF | AT5: excl LULUCF | BB5: incl LULUCF | BC5: excl LULUCF | BK5: incl LULUCF | BL5: excl LULUCF
A6: Africa | G6: =SUM(G7:G69) -> 1554.814684 | H6: =SUM(H7:H69) -> 1502.857735 | J6: =SUM(J7:J69) -> 1773.784608 | K6: =SUM(K7:K69) -> 2365.895796 | M6: =SUM(M7:M69) -> 1080.118233 | N6: 1490.418094 | R6: 1696.414405 | S6: 1029.978697 | T6: 3.798795358 | U6: 3.520234083 | AA6: =SUM(AA7:AA69) -> 1.191398922 | AB6: =SUM(AB7:AB69) -> 0.090936346 | AC6: =SUM(AC7:AC69) -> 1.636718013 | AD6: =SUM(AD7:AD69) -> 1.338479381 | AJ6: =SUM(AJ7:AJ69) -> 2.933568709 | AK6: =SUM(AK7:AK69) -> 0.835349975 | AL6: =SUM(AL7:AL69) -> 2.980698579 | AM6: =SUM(AM7:AM69) -> 2.25267342 | AS6: =SUM(AS7:AS69) -> 0.104 | AT6: =SUM(AT7:AT69) -> 0.034527 | AU6: =SUM(AU7:AU69) -> 0.086578 | AV6: =SUM(AV7:AV69) -> 0.086578 | BB6: =SUM(BB7:BB69) -> 0.042 | BC6: =SUM(BC7:BC69) -> 0 | BD6: =SUM(BD7:BD69) -> 0 | BE6: =SUM(BE7:BE69) -> 0 | BK6: =SUM(BK7:BK69) -> -0.1407282 | BL6: =SUM(BL7:BL69) -> 0.1892718 | BM6: =SUM(BM7:BM69) -> -0.1289342 | BN6: =SUM(BN7:BN69) -> -0.1658442
A7: Algeria | B7: Whole country | D7: 37062.82 | E7: NC1: 1994, NC2: 2000 | F7: 1994 | G7: 104.794 | H7: =G7-13.04 -> 91.754 | I7: 2000 | J7: 103.143 | K7: 117.31 | AL7: No BAU | AN7: 2030 | AQ7: -0.07 | AR7: -0.22
A8: Algeria | C8: Batna | D8: 350 | E8: Covenant of Mayors SEAP | L8: 2014 | N8: 1.513 | O8: 2014 | Q8: 1.513 | S8: 1.709 | T8: =X8*(1+Y8) -> 1.362073 | U8: =X8*(1+Z8) -> 1.362073 | V8: 2020 | X8: =+S8 -> 1.709 | Y8: -0.203 | Z8: =Y8 -> -0.203
A9: Algeria | C9: Boumerdés | D9: 42.5 | E9: Covenant of Mayors SEAP | L9: 2014 | N9: 0.159 | O9: 2014 | Q9: 0.159 | S9: 0.18 | T9: =X9*(1+Y9) -> 0.14382 | U9: =X9*(1+Z9) -> 0.14382 | V9: 2020 | X9: =+S9 -> 0.18 | Y9: -0.201 | Z9: =Y9 -> -0.201
A10: Algeria | C10: Sidi Bel Abbes | D10: 300 | E10: Covenant of Mayors SEAP | L10: 2014 | N10: 0.751 | O10: 2014 | Q10: 0.751 | S10: 0.849 | T10: =X10*(1+Y10) -> 0.678351 | U10: =X10*(1+Z10) -> 0.678351 | V10: 2020 | X10: =+S10 -> 0.849 | Y10: -0.201 | Z10: =Y10 -> -0.201
A11: Angola | B11: Whole country | D11: 19549.124 | E11: NC1: 2000, 2005 | F11: 2000 | G11: 43.141 | H11: 46.2 | J11: 66.8 | K11: 61.6 | R11: 175 | T11: 0.175 | U11: =T11 -> 0.175 | AA11: 0.155189 | AC11: =AF11*(1+AH11) -> 0.1241512 | AD11: =AF11*(1+AI11) -> 0.11328797 | AE11: 2025 | AF11: =+AA11 -> 0.155189 | AH11: -0.2 | AI11: -0.27 | AJ11: 0.19325 | AL11: =AO11*(1+AQ11) -> 0.1256125 | AM11: =AO11*(1+AR11) -> 0.096625 | AN11: 2030 | AO11: =+AJ11 -> 0.19325 | AQ11: -0.35 | AR11: -0.5
A12: Benin | B12: Whole country | D12: 9509.798 | E12: UNFCCC, GHG data | F12: 1995 | G12: -8.2 | H12: 39.3 | I12: 2000 | J12: =K12-11.3 -> -5 | K12: 6.3 | S12: 18 | AB12: 0.0185 | AC12: 0.018 | AD12: 0.0145 | AE12: 2025 | AG12: =AB12 -> 0.0185 | AH12: =AC12/AB12-1 -> -0.02702702703 | AI12: =AD12/AB12-1 -> -0.2162162162 | AK12: =K12*3.583/1000 -> 0.0225729 | AL12: 0.0215 | AM12: 0.0175 | AN12: 2030 | AP12: =+AK12 -> 0.0225729 | AQ12: =AL12/AK12-1 -> -0.0475304458 | AR12: =AM12/AK12-1 -> -0.2247340838
A13: Botswana | B13: Whole country | D13: 1969.341 | E13: UNFCCC, GHG data:1994; NC2: | F13: 1994 | G13: -29.4 | H13: 9.3 | I13: 2000 | J13: -35.5068 | K13: 7.4342 | N13: 8.307 | AD13: =AG13*(1+AI13) -> 0.00706095 | AE13: 2010 | AG13: =N13/1000 -> 0.008307 | AI13: -0.15 | BT13: 2000 data from 2nd national communication
A14: Burkina Faso | B14: Whole country | D14: 15540.284 | E14: Edgar4.2: 1990 | G14: 12.15101 | H14: =G14 -> 12.15101 | I14: 2007 | J14: 21.916 | K14: =J14-19.391 -> 2.525 | R14: 92.062 | S14: =R14-85.545 -> 6.517 | T14: =(R14-5.133)/1000 -> 0.086929 | U14: =T14-10.953/1000 -> 0.075976 | V14: 2020 | Y14: =(R14-T14*1000)/R14 -> 0.05575590363 | Z14: =(R14-U14*1000)/R14 -> 0.1747300732 | AA14: =105.316/1000 -> 0.105316 | AB14: =AA14-95.561/1000 -> 0.009755 | AC14: =AA14-6.608/1000 -> 0.098708 | AD14: =AC14-11.829/1000 -> 0.086879 | AE14: 2025 | AH14: =-(AA14-AC14)/AA14 -> -0.06274450226 | AI14: =-(AA14-AD14)/AA14 -> -0.1750636181 | AJ14: =118.323/1000 -> 0.118323 | AK14: =AJ14-103.424/1000 -> 0.014899 | AL14: =AJ14-7.808/1000 -> 0.110515 | AM14: =AL14-13.7663/1000 -> 0.0967487 | AN14: 2030 | AQ14: =-(AJ14-AL14)/AJ14 -> -0.065988861 | AR14: =-(AJ14-AM14)/AJ14 -> -0.1823339503
A15: Burundi | B15: Whole country | D15: 9232.753 | E15: NC2: 1998, 2005 | F15: 1998 | G15: 16.63026 | H15: =G15+2.99806 -> 19.62832 | J15: 14.07918 | K15: =J15+15.27583 -> 29.35501 | R15: =4.897/0.11/1000 -> 0.04451818182 | T15: =W15*(1+Y15) -> 0.044073 | U15: =W15*(1+Z15) -> 0.03962118182 | V15: 2030 | W15: =R15 -> 0.04451818182 | Y15: -0.01 | Z15: -0.11 | AA15: =9.897/0.17/1000 -> 0.05821764706 | AC15: =AF15*(1+AH15) -> 0.05705329412 | AD15: =AF15*(1+AI15) -> 0.04832064706 | AE15: 2025 | AF15: =AA15 -> 0.05821764706 | AH15: -0.02 | AI15: -0.17 | AJ15: =14.897/0.2/1000 -> 0.074485 | AL15: =AO15*(1+AQ15) -> 0.07225045 | AM15: =AO15*(1+AR15) -> 0.059588 | AN15: 2030 | AO15: =AJ15 -> 0.074485 | AQ15: -0.03 | AR15: -0.2
A16: Cameroon | B16: Whole country | D16: 20624.343 | E16: NC1: 1994 | F16: 1994 | G16: 43.98786 | H16: =G16-22.18534 -> 21.80252 | M16: 39.158 | AJ16: 0.092 | AL16: 0.066 | AM16: 0.066 | AN16: 2030 | AO16: =AJ16 -> 0.092 | AQ16: =(AL16-AO16)/AL16 -> -0.3939393939 | AR16: =AQ16 -> -0.3939393939 | AS16: =AX16 -> 0.104 | AU16: =AX16*(1+AZ16) -> 0.07072 | AV16: =AX16*(1+BA16) -> 0.07072 | AW16: 2035 | AX16: =104/1000 -> 0.104 | AZ16: -0.32 | BA16: -0.32
A17: Cape Verde | B17: Whole country | D17: 487.601 | E17: UNFCCC, GHG data:1995; NC2: 2000 | F17: 1995 | G17: =222.6/1000 -> 0.2226 | H17: =292.9/1000 -> 0.2929 | I17: 2000 | J17: =469.5/1000 -> 0.4695 | K17: =J17 -> 0.4695 | AL17: Se NC3 in 2016
A18: Central African Republic | B18: Whole country | D18: 4349.921 | E18: UNFCCC, GHG data: 1994 | F18: 1994 | G18: -101.6 | H18: 37.7 | M18: =N18-330 -> -225.97103 | N18: 104.02897 | AJ18: =AK18-0.33 -> -0.21371451 | AK18: =AP18 -> 0.11628549 | AL18: =AP18-0.004062-0.33 -> -0.21777651 | AM18: =AP18-0.0055-0.33 -> -0.21921451 | AN18: 2030 | AP18: 0.11628549 | BK18: =BL18-0.33 -> -0.1407282 | BL18: =BQ18 -> 0.1892718 | BM18: =BQ18-0.01041-0.310146 -> -0.1312842 | BN18: =BQ18-0.04732-0.310146 -> -0.1681942 | BO18: 2030 | BQ18: 0.1892718
A19: Chad | B19: Whole country | D19: 11720.781 | E19: UNFCCC, GHG data; NC2: 2000 | F19: 1993 | G19: -38.2 | H19: 8 | I19: 2000 | J19: -11.18295 | K19: 54.40576 | M19: 8.37962 | N19: =M19+10.90877 -> 19.28839 | AJ19: =28.65937/1000 -> 0.02865937 | AK19: =AJ19+17.38748/1000 -> 0.04604685 | AL19: =+AO19*(1+AQ19) -> 0.02344336466 | AM19: =+AO19*(1+AR19) -> 0.0083112173 | AN19: 2030 | AO19: =AJ19 -> 0.02865937 | AQ19: -0.182 | AR19: -0.71
A20: Comoros | B20: Whole country | D20: 683.081 | E20: UNFCCC, GHG data: 1994 | F20: 1994 | G20: -0.4 | H20: 0.5 | J20: -0.0431 | K20: 0.1859 | M20: 0.1416 | N20: 0.2545 | R20: 0.3578 | T20: =0.1912/1000 -> 0.0001912 | U20: =T20 -> 0.0001912 | V20: 2020 | W20: =+R20/1000 -> 0.0003578 | Y20: =-(W20-T20)/W20 -> -0.4656232532 | Z20: =-(W20-U20)/W20 -> -0.4656232532 | AA20: =0.4345/1000 -> 0.0004345 | AC20: =0.133/1000 -> 0.000133 | AD20: =AC20 -> 0.000133 | AE20: 2025 | AF20: =+AA20 -> 0.0004345 | AH20: =-(AF20-AC20)/AF20 -> -0.6939010357 | AI20: =-(AF20-AD20)/AF20 -> -0.6939010357 | AJ20: =0.5231/1000 -> 0.0005231 | AL20: =AM20 -> 8.14e-05 | AM20: =0.0814/1000 -> 8.14e-05 | AN20: 2030 | AO20: =+AJ20 -> 0.0005231 | AQ20: =-(AO20-AL20)/AO20 -> -0.8443892181 | AR20: =-(AO20-AM20)/AO20 -> -0.8443892181
A21: Congo | B21: Whole country | D21: 4111.715 | E21: UNFCCC, GHG data: 1994 | F21: 1994 | G21: 68.5 | H21: 1.4 | I21: 2000 | J21: =K21-72.7 -> -70.7 | K21: 2 | AB21: =16.984/1000 -> 0.016984 | AC21: =8.793/1000 -> 0.008793 | AD21: =AC21 -> 0.008793 | AE21: 2025 | AG21: =+AB21 -> 0.016984 | AH21: -0.48 | AI21: -0.48 | AK21: =(16.984+34.527)/2/1000 -> 0.0257555 | AL21: =(8.793+15.858)/2/1000 -> 0.0123255 | AM21: =AL21 -> 0.0123255 | AN21: 2030 | AP21: =+AK21 -> 0.0257555 | AQ21: -0.51 | AR21: =AQ21 -> -0.51 | AT21: =34.527/1000 -> 0.034527 | AU21: =15.858/1000 -> 0.015858 | AV21: =AU21 -> 0.015858 | AW21: 2025 | AY21: =+AT21 -> 0.034527 | AZ21: -0.54 | BA21: =AZ21 -> -0.54
A22: Congo DR | B22: Whole country | D22: 62191.161 | E22: UNFCCC, GHG data: 1994; NC3: 2005, 2010 | F22: 1994 | G22: 132.2 | H22: 44.6 | J22: 240 | K22: 50 | M22: 238 | N22: 50 | R22: 380 | S22: 30 | T22: =+R22/1000 -> 0.38 | U22: =+T22 -> 0.38 | AA22: 0.405 | AB22: 0.03 | AC22: 0.37 | AD22: 0.37 | AE22: 2025 | AJ22: 0.43 | AK22: 0.03 | AL22: =+AM22 -> 0.3569 | AM22: =+AO22*(1+AR22) -> 0.3569 | AN22: 2030 | AO22: =+AJ22 -> 0.43 | AQ22: -0.17 | AR22: -0.17
A23: Côte d'Ivoire | B23: Whole country | D23: 18976.588 | E23: UNFCCC, GHG data: 1994; NC2: 2000 | F23: 1994 | G23: 4.9 | H23: 24.7 | I23: 2000 | J23: =K23-19.70384 -> 252.82071 | K23: 272.52455 | L23: 2012 | N23: 15.96435 | AK23: =34.25325/1000 -> 0.03425325 | AL23: =+AP23*(1+AQ23) -> 0.02466234 | AM23: =+AP23*(1+AR23) -> 0.02466234 | AN23: 2030 | AP23: =+AK23 -> 0.03425325 | AQ23: -0.28 | AR23: =AQ23 -> -0.28
A24: Djibouti | B24: Whole country | D24: 834.036 | E24: NC2: 1994, 2000 | F24: 1994 | G24: -0.09316 | H24: 2.35326 | I24: 2000 | J24: -1.2391 | K24: 1.4 | N24: 1.974 | S24: 2.905 | T24: =X24*(1+Y24) -> 0.002324 | U24: =X24*(1+Z24) -> 0.00188825 | V24: 2020 | X24: =+S24/1000 -> 0.002905 | Y24: -0.2 | Z24: -0.35 | AK24: =4.475/1000 -> 0.004475 | AL24: =AP24*(1+AQ24) -> 0.002685 | AM24: =AP24*(1+AR24) -> 0.00179 | AN24: 2030 | AP24: =+AK24 -> 0.004475 | AQ24: -0.4 | AR24: -0.6 | BT24: GACMO used in INDC | BU24: Mitigation optionhs shown in INDC
A25: Egypt | B25: Whole country | D25: 78075.705 | E25: NC2: 1990, 2000 | F25: 1990 | G25: =H25 -> 116.6 | H25: 116.6 | I25: 2000 | J25: =K25 -> 193.3 | K25: 193.3 | AL25: Sectoral goals
A26: Equatorial Guinea | B26: Whole country | D26: 696.167 | E26: Edgar4.2: 1990, 2005, 2010 | G26: 0.24338 | H26: =G26 -> 0.24338 | J26: 5.67589 | K26: =J26 -> 5.67589 | M26: 4.7 | N26: =M26 -> 4.7 | AL26: =AO26*(1+AQ26) -> 0.00376 | AM26: =AO26*(1+AR26) -> 0.00376 | AN26: 2010 | AO26: =+M26/1000 -> 0.0047 | AQ26: -0.2 | AR26: =AQ26 -> -0.2 | BM26: =BP26*(1+BR26) -> 0.00235 | BN26: =BP26*(1+BS26) -> 0.00235 | BO26: 2010 | BP26: =+M26/1000 -> 0.0047 | BR26: -0.5 | BS26: =BR26 -> -0.5
A27: Eritrea | B27: Whole country | D27: 5741.159 | E27: UNFCCC, GHG data: 1995, 2005 | F27: 1995 | G27: 0.8 | H27: 0.8 | I27: 2000 | J27: 0.8 | K27: 0.8 | M27: 3.972 | N27: =M27-0.3 -> 3.672 | R27: 5 | T27: =W27*(1+Y27)+3.302/1000 -> 0.004573926 | U27: =W27*(1+Z27)+3.302/1000 -> 0.004353944 | V27: 2020 | W27: =1.654/1000 -> 0.001654 | Y27: -0.231 | Z27: -0.364 | AA27: =5.5/1000 -> 0.0055 | AC27: =AF27*(1+AH27)+3.283/1000 -> 0.00485001 | AD27: =AF27*(1+AI27)+3.283/1000 -> 0.004156305 | AE27: 2025 | AF27: =2.245/1000 -> 0.002245 | AH27: -0.302 | AI27: -0.611 | AJ27: =6.331/1000 -> 0.006331 | AL27: =AO27*(1+AQ27)+3.283/1000 -> 0.005136184 | AM27: =AO27*(1+AR27)+3.283/1000 -> 0.003874312 | AN27: 2030 | AO27: =3.048/1000 -> 0.003048 | AQ27: -0.392 | AR27: -0.806
A28: Ethiopia | B28: Whole country | D28: 87095.281 | E28: NC2:1994, 2005, 2010, 2013 | F28: 1994 | G28: -25.05054 | H28: 25.43379 | J28: 68.01998 | K28: 144.35805 | M28: 88.09524 | N28: 186.3616 | O28: 2013 | P28: 35.85673 | Q28: 146.16043 | AJ28: 0.4 | AK28: =AJ28-0.09 -> 0.31 | AL28: =AJ28-0.255 -> 0.145 | AM28: =AL28 -> 0.145 | AN28: 2030 | AO28: =AJ28 -> 0.4 | AQ28: =-(AO28-AL28)/AO28 -> -0.6375 | AR28: =-(AO28-AM28)/AO28 -> -0.6375 | BU28: The country plan to develop a carbon neutral, green economy by 2025. | BV28: The Government has issued the Climate‐Resilient Green Economy (CRGE) strategy in 2011
A29: Ethiopia | C29: Addis Ababa | D29: 3049 | E29: C40 | L29: 2012 | N29: 4.89 | T29: =X29*(1+Y29) -> 0.0012225 | U29: =X29*(1+Z29) -> 0.0012225 | V29: 2020 | X29: =N29/1000 -> 0.00489 | Y29: -0.75 | Z29: =Y29 -> -0.75 | BV29: www.echnoserve.com/publications/Final%20aa-inventory-low-res(encrypted).pdf
A30: Gabon | B30: Whole country | D30: 1556.222 | E30: UNFCCC, GHG data: 1994 | F30: 1994 | G30: 494.4 | H30: 6.5 | I30: 2000 | J30: -57.992 | K30: 6.162 | AB30: =AG30 -> 0.00889 | AC30: =AD30 -> 0.006499 | AD30: =6.499/1000 -> 0.006499 | AE30: 2025 | AG30: 0.00889 | AH30: =-(AB30-AD30)/AB30 -> -0.2689538808 | AI30: =AH30 -> -0.2689538808
A31: Gambia | B31: Whole country | D31: 1680.64 | E31: UNFCCC, GHG data: 1993; NC2: 2000 | F31: 1993 | G31: -45.7 | H31: 4.3 | I31: 2000 | J31: =K31-7.2619 -> 12.5791 | K31: 19.841 | AB31: =3.25/1000 -> 0.00325 | AC31: =AG31*(1+AH31) -> 0.001807 | AD31: =AG31*(1+AI31) -> 0.001807 | AE31: 2025 | AG31: =+AB31 -> 0.00325 | AH31: -0.444 | AI31: -0.444 | AK31: =4/1000 -> 0.004 | AL31: =AP31*(1+AQ31) -> 0.002184 | AM31: =AP31*(1+AR31) -> 0.002184 | AN31: 2030 | AP31: =AK31 -> 0.004 | AQ31: -0.454 | AR31: =AQ31 -> -0.454 | BT31: 2000 data from 2nd national communication | BV31: Have pledged to develop a low-emission development strategy
A32: Ghana | B32: Whole country | D32: 24262.901 | E32: BUR1: 1990, 2005, 2010 | G32: 14.22 | H32: =+G32+3.02-9.91 -> 7.33 | J32: 20.9 | K32: =J32-9.39+0.93 -> 12.44 | M32: 30.42 | N32: =M32-1.84-10.29 -> 18.29 | R32: =37.81 -> 37.81 | AA32: =53.5/1000 -> 0.0535 | AC32: =AF32*(1+AH32) -> 0.04708 | AD32: =AF32*(1+AI32) -> 0.039055 | AE32: 2025 | AF32: =+AA32 -> 0.0535 | AH32: -0.12 | AI32: -0.27 | AJ32: =73.95/1000 -> 0.07395 | AL32: =AO32*(1+AQ32) -> 0.0628575 | AM32: =AO32*(1+AR32) -> 0.0406725 | AN32: 2030 | AO32: =+AJ32 -> 0.07395 | AQ32: -0.15 | AR32: -0.45 | BU32: Share of 10% renewable energy in grid electricity by 2020
A33: Guinea | B33: Whole country | D33: 10876.033 | E33: NC1: 1994 | F33: 1994 | G33: -12.5 | H33: =7.2*2.1 -> 15.12 | K33: 22 | N33: 25 | S33: 38 | AB33: 0.045 | AL33: =AP33*(1+AQ33) -> 0.04698 | AM33: =AP33*(1+AR33) -> 0.04698 | AN33: 2030 | AP33: 0.054 | AQ33: -0.13 | AR33: -0.13
A34: Guinea-Bissau | B34: Whole country | D34: 1586.624 | E34: UNFCCC, GHG data; NC2: 2006 | F34: 1994 | G34: -11.3 | H34: 1.7 | I34: 2006 | J34: 5.764 | K34: 2.14 | L34: 2006 | M34: 5.764 | N34: 2.14 | AL34: No data | AM34: No data
A35: Kenya | B35: Whole country | D35: 40909.194 | E35: NC2: 1994, 2005, 2010, 2020, 2025 | F35: 1995 | G35: 45 | H35: 35 | J35: 58 | K35: 40 | M35: 69.577 | N35: 48.421 | R35: 96 | AA35: 0.115 | AJ35: 0.143 | AL35: =AJ35*(1+AQ35) -> 0.1001 | AM35: =AO35*(1+AR35) -> 0.1001 | AN35: 2030 | AO35: =+AJ35 -> 0.143 | AQ35: -0.3 | AR35: -0.3 | BT35: Kenya's Climate Change Action Plan www.kccap.info
A36: Kenya | B36: Laikipia County | D36: 420 | E36: CDP States and Regions responses 2015 | L36: 2015 | M36: 0.144 | O36: 2015 | P36: 0.144 | AL36: =AO36*(1+AQ36) -> 0.108 | AM36: =AO36*(1+AR36) -> 0.108 | AN36: 2030 | AO36: =+M36 -> 0.144 | AQ36: -0.25 | AR36: =AQ36 -> -0.25
A37: Lesotho | B37: Whole country | D37: 2008.921 | E37: UNFCCC, GHG data: 1994, NC2: 2000 | F37: 1994 | G37: 3.1 | H37: 1.8 | I37: 2000 | J37: 2.13491 | K37: 3.51289 | AL37: Sectoral goals
A38: Liberia | B38: Whole country | D38: 3957.99 | E38: NC1: Only 2000 | F38: 2000 | G38: -88.789 | H38: 8.022 | I38: 2000 | J38: -88.789 | K38: 8.022 | N38: 1 | AK38: =5.302/1000 -> 0.005302 | AL38: =AM38 -> 0.004505 | AM38: =4.505/1000 -> 0.004505 | AN38: 2030 | AP38: =+AK38 -> 0.005302 | AQ38: -0.15 | AR38: -0.15
A39: Libya | B39: Whole country | D39: 6040.612 | E39: Edgar 4.2: 1990, 2005, 2010 | G39: 61.07415 | H39: =G39 -> 61.07415 | J39: 69.93174 | K39: =J39 -> 69.93174 | M39: 77.78009 | N39: =M39 -> 77.78009
A40: Madagascar | B40: Whole country | D40: 21079.532 | E40: NC2: 1995 | F40: 1995 | G40: =H40-222 -> -196.55161 | H40: 25.44839 | I40: 2000 | J40: -202.865 | K40: 87.152 | M40: -63.121 | N40: 156.973 | R40: -23.609 | S40: 192.281 | AJ40: =22.095/1000 -> 0.022095 | AK40: =214.206/1000 -> 0.214206 | AL40: =AP40*(1+AQ40)-0.192111 -> -0.00789384 | AM40: =AP40*(1+AQ40)-0.192111*1.32 -> -0.06936936 | AP40: =+AK40 -> 0.214206 | AQ40: -0.14
A41: Malawi | B41: Whole country | D41: 15013.694 | E41: NC2: 1990, 1999 | G41: =21.86954-1.32081 -> 20.54873 | H41: =0.61913+0.05012+0.33626*21+0.00109*310 -> 8.06861 | I41: 1999 | J41: 23.00323 | K41: =J41-18.954 -> 4.04923 | L41: 2015 | M41: 29 | O41: 2015 | P41: 29 | AL41: Sectoral goals | BB41: =42/1000 -> 0.042
A42: Mali | B42: Whole country | D42: 13985.961 | E42: UNFCCC, GHG data:1995; NC2 2005 | F42: 1995 | G42: 1.1 | H42: 8.7 | J42: -42.20512 | K42: =J42+65.64605 -> 23.44093 | M42: =N42-0.245177 -> -0.19667 | N42: 0.048507 | R42: =4.75+68-179 -> -106.25 | S42: =4.75+68 -> 72.75 | T42: =R42/1000 -> -0.10625 | U42: =T42 -> -0.10625 | Y42: 0 | Z42: 0 | AA42: =(6.635+76.015-154.424)/1000 -> -0.071774 | AB42: =AA42 -> -0.071774 | AC42: =(5.149+66.256-154.424)/1000 -> -0.083019 | AD42: =AC42 -> -0.083019 | AE42: 2025 | AJ42: =(9.269+86.121-126.588)/1000 -> -0.031198 | AK42: =AJ42 -> -0.031198 | AL42: =(6.336+59.521-153.079)/1000 -> -0.087222 | AM42: =AL42 -> -0.087222 | AN42: 2030
A43: Mauritania | B43: Whole country | D43: 3609.42 | E43: BUR1: 1990, 2005, 2010 | F43: 1995 | G43: 3.6 | H43: =G43+4.3-3.6 -> 4.3 | I43: 2000 | J43: 5.32447 | K43: =J43+6.9-5.6 -> 6.62447 | M43: 6.618918 | N43: =M43+0.321632 -> 6.94055 | AJ43: =18.84/1000 -> 0.01884 | AL43: =AO43*(1+AQ43) -> 0.0183358416 | AM43: =AO43*(1+AR43) -> 0.01463868 | AN43: 2030 | AO43: =AJ43 -> 0.01884 | AQ43: =-22.3%*0.12 -> -0.02676 | AR43: -0.223
A44: Mauritius | B44: Whole country | D44: 1230.659 | E44: NC2: 1990, 2000 | G44: 1.6 | H44: =G44+0.195 -> 1.795 | J44: 4.192 | K44: 4.498 | M44: 4.8 | AJ44: 0.007 | AL44: =AO44*(1+AQ44) -> 0.0049 | AM44: =AO44*(1+AR44) -> 0.0049 | AN44: 2030 | AO44: =AJ44 -> 0.007 | AQ44: -0.3 | AR44: -0.3
A45: Morocco | B45: Whole country | D45: 31642.36 | E45: BUR1: 1994, 2005, 2010, 2012 | F45: 1994 | G45: 47.937 | H45: =G45+5.39 -> 53.327 | J45: 79.6639 | K45: =J45+4.7058 -> 84.3697 | M45: 93.9372 | N45: =M45+4.9426 -> 98.8798 | O45: 2012 | P45: 100.5474 | Q45: =P45+5.103 -> 105.6504 | R45: 122 | T45: 0.113 | U45: 0.103 | V45: 2020 | W45: =R45/1000 -> 0.122 | Y45: =(T45-W45)/W45 -> -0.0737704918 | Z45: =(U45-W45)/W45 -> -0.1557377049 | AA45: 0.143 | AC45: 0.129 | AD45: 0.104 | AE45: 2025 | AF45: =+AA45 -> 0.143 | AH45: =(AC45-AF45)/AF45 -> -0.0979020979 | AI45: =(AD45-AF45)/AF45 -> -0.2727272727 | AJ45: 0.171 | AL45: 0.148 | AM45: 0.117 | AN45: 2030 | AO45: =+AJ45 -> 0.171 | AQ45: =-(AO45-AL45)/AO45 -> -0.134502924 | AR45: =-(AO45-AM45)/AO45 -> -0.3157894737
A46: Morocco | C46: Salé | D46: 903.485 | E46: Covenant of Mayors SEAP | I46: 2008 | K46: 0.875362 | T46: =X46*(1+Y46) -> 0.0007002896 | U46: =X46*(1+Z46) -> 0.0007002896 | V46: 2008 | X46: =K46/1000 -> 0.000875362 | Y46: -0.2 | Z46: =Y46 -> -0.2
A47: Mozambique | B47: Whole country | D47: 23967.265 | E47: NC1: 1990, 1994 | G47: 8.626 | H47: 6.8 | I47: 1994 | J47: 15.907 | K47: 8.2
A48: Namibia | B48: Whole country | D48: 2178.967 | E48: BUR1 | F48: 1994 | G48: -0.031 | H48: 5.685 | I48: 2000 | J48: -1.442 | K48: 9.118 | M48: -16.48349 | N48: 5.17967 | R48: 12.441 | AJ48: =22.647/1000 -> 0.022647 | AL48: =2.6/1000 -> 0.0026 | AM48: =AL48 -> 0.0026 | AN48: 2030 | AQ48: -0.89 | AR48: -0.89
A49: Niger | B49: Whole country | D49: 15893.746 | E49: NC2: 1990, 2000 | G49: 9 | H49: =G49-6.10626 -> 2.89374 | I49: 2000 | J49: 30.801 | K49: =J49-17.132 -> 13.669 | L49: 2008 | M49: 35.9 | R49: 66.821 | T49: =W49*(1+Y49) -> 0.065150475 | U49: =W49*(1+Z49) -> 0.05011575 | V49: 2020 | W49: =R49/1000 -> 0.066821 | Y49: -0.025 | Z49: -0.25 | AJ49: =96.468/1000 -> 0.096468 | AL49: =AO49*(1+AQ49) -> 0.09309162 | AM49: =AO49*(1+AR49) -> 0.063090072 | AN49: 2030 | AO49: =AJ49 -> 0.096468 | AQ49: -0.035 | AR49: -0.346
A50: Nigeria | B50: Whole country | D50: 159707.78 | E50: NC2: 1990,2000 | G50: 229.045 | H50: =G50-105 -> 124.045 | I50: 2000 | J50: 318.075 | K50: 220.51 | AJ50: 0.9 | AL50: =AO50*(1+AQ50) -> 0.72 | AM50: =AO50*(1+AR50) -> 0.495 | AN50: 2030 | AO50: =AJ50 -> 0.9 | AQ50: -0.2 | AR50: -0.45
A51: Rwanda | B51: Whole country | D51: 10836.732 | E51: UNFCCC, GHG data: 2002; NC2: 2005 | F51: 2002 | G51: -4.6 | H51: 2.4 | J51: -3.5346 | K51: 5.0104 | AL51: Will come later
A52: Sao Tome and Principe | B52: Whole country | D52: 178.228 | E52: UNFCCC, GHG data: 1998, NC2: 2005 | F52: 1998 | G52: -1.4 | H52: 0.1 | J52: =K52-0.72757+0.0972 -> -0.53737 | K52: =0.093 -> 0.093 | AJ52: =AK52-0.00063 -> -0.00039 | AK52: 0.00024 | AL52: =AM52 -> 0.0001824 | AM52: =AP52*(1+AR52) -> 0.0001824 | AN52: 2030 | AP52: =+AK52 -> 0.00024 | AQ52: -0.24 | AR52: =AQ52 -> -0.24
A53: Senegal | B53: Whole country | D53: 12950.564 | E53: NC1: 1994, NC3:2005 | F53: 1994 | G53: =H53-5.997 -> 3.3209 | H53: 9.3179 | J53: =K53-11.434 -> 1.63583 | K53: =5.07839+6.24523+1.74621 -> 13.06983 | N53: 13.6 | S53: 22.4 | V53: 2020 | X53: =S53/1000 -> 0.0224 | Y53: -0.03 | Z53: -0.07 | AB53: =29.6/1000 -> 0.0296 | AC53: =AG53*(1+AH53) -> 0.028416 | AD53: =AG53*(1+AI53) -> 0.02516 | AE53: 2025 | AG53: =AB53 -> 0.0296 | AH53: -0.04 | AI53: -0.15 | AK53: =37.6/1000 -> 0.0376 | AL53: =AP53*(1+AQ53) -> 0.03572 | AM53: =AP53*(1+AR53) -> 0.029704 | AN53: 2030 | AP53: =+AK53 -> 0.0376 | AQ53: -0.05 | AR53: -0.21
A54: Seychelles | B54: Whole country | D54: 91.208 | E54: NC2: all years | G54: =0.12979-0.845 -> -0.71521 | H54: 0.12979 | J54: =0.310816-0.81378 -> -0.502964 | K54: 0.310816 | M54: =0.379997-0.805642 -> -0.425645 | N54: 0.379997 | R54: =0.587697-0.78961 -> -0.201913 | S54: =0.587697 -> 0.587697 | AA54: =0.000731346-0.000781171 -> -4.9825e-05 | AB54: =0.000731346 -> 0.000731346 | AC54: =AF54-0.0001225 -> -0.000172325 | AD54: =AC54 -> -0.000172325 | AE54: 2025 | AF54: =AA54 -> -4.9825e-05 | AJ54: =0.000911985-0.000773896 -> 0.000138089 | AK54: =0.000911985 -> 0.000911985 | AL54: =AO54-0.00018804 -> -4.9951e-05 | AM54: =AL54 -> -4.9951e-05 | AN54: 2030 | AO54: =AJ54 -> 0.000138089
A55: Sierra Leone | B55: Whole country | D55: 5751.976 | E55: NC1: 1990; NC2: 2000 | F55: 1990 | G55: =H55-0.36 -> 5.042263 | H55: 5.402263 | I55: 2000 | J55: =K55-0.752748 -> 3.559252 | K55: 4.312 | R55: 5.239 | AA55: =5.851/1000 -> 0.005851 | AJ55: =6.6/1000 -> 0.0066 | AL55: Sectoral goals | AN55: 2030 | AO55: =+AJ55 -> 0.0066
A56: Somalia | B56: Whole country | D56: 9636.173 | E56: Edgar 4.2: 1990, 2005, 2010 | G56: 17.95341 | H56: =G56 -> 17.95341 | J56: 21.21993 | K56: =J56 -> 21.21993 | M56: 21.46181 | N56: =M56 -> 21.46181 | AL56: Projects proposed
A57: South Africa | B57: Whole country | D57: 51452.352 | E57: 2005, 2010: BUR1; 2020 BAU: GAP5 averages | G57: 330.36699 | H57: 347.34936 | J57: 480.251 | K57: 505.654 | M57: 518.239 | N57: 544.314 | R57: 679.9 | S57: 643.8 | T57: =W57*(1+Y57) -> 0.6799 | U57: =W57*(1+Z57) -> 0.448734 | V57: 2020 | W57: =R57/1000 -> 0.6799 | Y57: 0 | Z57: -0.34 | AC57: 0.614 | AD57: 0.398 | AL57: 0.614 | AM57: 0.398 | BT57: Republic of S Africa Dept of Environmental Affairs
A58: South Africa | C58: Durban | D58: 3520 | E58: CDP, C40 | L58: 2011 | N58: 21.49601 | O58: 2012 | Q58: 23.15418 | T58: =X58*(1+Y58) -> 0.0163369676 | U58: =X58*(1+Z58) -> 0.0163369676 | V58: 2006 | X58: =N58/1000 -> 0.02149601 | Y58: -0.24 | Z58: =Y58 -> -0.24 | BV58: www.bbsr.bund.de/BBSR/DE/Veroeffentlichungen/IzR/2012/5_6/Inhalt/DL_DiabRoberts.pdf?__blob=publicationFile&v=2
A59: South Africa | C59: Johannesburg | D59: 4400 | E59: C40, CDP: 2013 | F59: 2003 | H59: 16.502801 | I59: 2007 | K59: 20.550178 | O59: 2013 | Q59: 26.22 | AC59: =+AG59*(1+AH59) -> 0.0154126335 | AD59: =+AG59*(1+AI59) -> 0.0154126335 | AE59: 2005 | AG59: =+K59/1000 -> 0.020550178 | AH59: -0.25 | AI59: =AH59 -> -0.25 | BV59: 2003 and 2007 from www.capetown.gov.za/en/EnvironmentalResourceManagement/publications/Documents/State_of_Energy_+_Energy_Futures_Report_2011_revised_2012-01.pdf
A60: South Sudan | D60: 9940.929 | F60: No data | AL60: Sectoral goals
A61: Sudan | B61: Whole country | D61: 35652.002 | E61: NC2: 1995, 2000 | F61: 1995 | G61: 72.014 | H61: 54.237 | I61: 2000 | J61: 77.014 | K61: =J61-9.392 -> 67.622
A62: Swaziland | B62: Whole country | D62: 1193.148 | E62: UNFCCC, GHG data: 1994, NC2: 2000 | F62: 1994 | G62: 4.28588 | H62: 7.53861 | I62: 2000 | J62: 19.76314 | K62: 18.65801 | M62: 0.8 | AL62: Sectoral goals | BT62: UNFCCC, 2nd Nat. Communication
A63: Tanzania | B63: Whole country | D63: 44973.33 | E63: NC1: 1990 | G63: 93.496551 | H63: 40.577311 | R63: 114 | T63: =R63/1000 -> 0.114 | U63: =T63 -> 0.114 | AA63: =131/1000 -> 0.131 | AC63: =125/1000 -> 0.125 | AD63: =120/1000 -> 0.12 | AE63: 2025 | AJ63: =146/1000 -> 0.146 | AL63: =AO63*(1+AQ63) -> 0.1314 | AM63: =AO63*(1+AR63) -> 0.1168 | AN63: 2030 | AO63: =AJ63 -> 0.146 | AQ63: -0.1 | AR63: -0.2
A64: Togo | B64: Whole country | D64: 6306.014 | E64: UNFCCC, GHG data | F64: 1992 | G64: 18.3 | H64: 4.3 | I64: 2000 | J64: 13.2 | K64: 4.9 | M64: 20.44524 | AJ64: =38.86136/1000 -> 0.03886136 | AL64: =34.53328/1000 -> 0.03453328 | AM64: =27.62662/1000 -> 0.02762662 | AN64: 2030 | AO64: =AJ64 -> 0.03886136 | AQ64: -0.1114 | AR64: -0.3114
A65: Tunisia | B65: Whole country | D65: 10631.83 | E65: UNFCCC, GHG data:1994; NC2:2000; BUR1:2010 (Excl) | F65: 1994 | G65: 23.924 | H65: 29.427 | I65: 2000 | J65: 33.002 | K65: 38.687 | M65: 28.3 | N65: 45.9675 | R65: 39.8 | T65: =37.4/1000 -> 0.0374 | U65: =31.1/1000 -> 0.0311 | V65: 2020 | W65: =R65/1000 -> 0.0398 | Y65: =(T65-W65)/W65 -> -0.06030150754 | Z65: =(U65-W65)/W65 -> -0.2185929648 | AA65: =51.6/1000 -> 0.0516 | AC65: =47.4/1000 -> 0.0474 | AD65: =35/1000 -> 0.035 | AE65: 2025 | AF65: =AA65 -> 0.0516 | AH65: =(AC65-AF65)/AF65 -> -0.08139534884 | AI65: =(AD65-AF65)/AF65 -> -0.3217054264 | AJ65: =68/1000 -> 0.068 | AL65: =62.2/1000 -> 0.0622 | AM65: =42.4/1000 -> 0.0424 | AN65: 2030 | AO65: =AJ65 -> 0.068 | AQ65: =-(AO65-AL65)/AO65 -> -0.08529411765 | AR65: =-(AO65-AM65)/AO65 -> -0.3764705882
A66: Uganda | B66: Whole country | D66: 33987.213 | E66: UNFCCC, GHG data:1994; NC2:2006 | F66: 1994 | G66: 49.8 | H66: 41.5 | I66: 2006 | J66: 38.078 | K66: 27.583 | AJ66: =77.3/1000 -> 0.0773 | AL66: =AO66*(1+AQ66) -> 0.060294 | AM66: =AO66*(1+AR66) -> 0.060294 | AN66: 2030 | AO66: =AJ66 -> 0.0773 | AQ66: -0.22 | AR66: =AQ66 -> -0.22
A67: Western Sahara | B67: Whole country | D67: 514.648 | E67: Edgar 4.2: 1990, 2005, 2010 | G67: 0.50022 | H67: =G67 -> 0.50022 | J67: 0.62345 | K67: =J67 -> 0.62345 | M67: 0.68235 | N67: =M67 -> 0.68235
A68: Zambia | B68: Whole country | D68: 13216.985 | E68: UNFCCC, GHG data: LULUCF; NC2:1994,2005,2010 | F68: 1994 | G68: 51.52 | H68: 13.354 | I68: 2000 | J68: 54.716 | K68: 14.406 | M68: 60 | AL68: =AO68*(1+AQ68) -> 0.045 | AM68: =AO68*(1+AR68) -> 0.0318 | AN68: 2010 | AO68: =+M68/1000 -> 0.06 | AQ68: -0.25 | AR68: -0.47 | BT68: BUR1 | BU68: NC2: BAU for 2020,2025,2030
A69: Zimbabwe | B69: Whole country | D69: 13076.978 | E69: NC2: 1994, 2994 | F69: 1994 | G69: -34.6 | H69: 27.6 | I69: 2000 | J69: =K69-88.0346 -> -61.0386 | K69: 26.996 | AA69: =13.1*2.566/1000 -> 0.0336146 | AC69: =13.1*1.802/1000 -> 0.0236062 | AD69: =AC69 -> 0.0236062 | AE69: 2025 | AF69: =AA69 -> 0.0336146 | AJ69: =13.1*3.313/1000 -> 0.0434003 | AL69: =13.1*2.205/1000 -> 0.0288855 | AM69: =AL69 -> 0.0288855 | AN69: 2030 | AO69: =13.1*1.802/1000 -> 0.0236062 | BT69: 2000 data from 2nd national communication
A70: America
A71: Antigua and Barbuda | B71: Whole country | D71: 87.233 | E71: UNFCCC, GHG data: 1990; NC2: 2000 | G71: 0.2918 | H71: 0.38863 | I71: 2000 | J71: 0.6143 | K71: 0.59775 | L71: 2006 | M71: 0.9455 | T71: =X71*(1+Y71) -> 0.0002914725 | U71: =X71*(1+Z71) -> 0.0002914725 | V71: 1990 | X71: =+H71/1000 -> 0.00038863 | Y71: -0.25 | Z71: -0.25 | AL71: Sectoral goals | AN71: 2030
A72: Argentina | B72: Whole country | D72: 40374.224 | E72: NC3: 1990, 2005, 2010; Same in BUR1 | G72: 268.75 | H72: 233.19 | J72: 413.691 | K72: 327.949 | M72: 447.642 | N72: 332.498 | AJ72: 0.67 | AL72: =AO72*(1+AQ72) -> 0.5695 | AM72: =AO72*(1+AR72) -> 0.469 | AN72: 2030 | AO72: =AJ72 -> 0.67 | AQ72: -0.15 | AR72: -0.3
A73: Argentina | C73: Bueno Aires | D73: 2891 | E73: C40, CDP: 2010, 2012 | I73: 2008 | K73: 11.000721 | N73: 9.81393271 | O73: 2012 | Q73: 9.886932 | T73: =X73*(1+Y73) -> 0.0099006489 | U73: =X73*(1+Z73) -> 0.0099006489 | V73: 2008 | X73: =+K73/1000 -> 0.011000721 | Y73: -0.1 | Z73: =Y73 -> -0.1 | AL73: =AP73*(1+AQ73) -> 0.0077005047 | AM73: =AP73*(1+AR73) -> 0.0077005047 | AN73: 2008 | AP73: =+K73/1000 -> 0.011000721 | AQ73: -0.3 | AR73: =AQ73 -> -0.3
A74: Bahamas | B74: Whole country | D74: 360.498 | E74: UNFCCC, GHG data | G74: -1.6638 | H74: 1.9152 | I74: 1994 | J74: 2.1972 | K74: 2.1972 | M74: =N74-0.00415961 -> 0.69865819 | N74: 0.7028178 | AL74: Sectoral goals | BU74: Renewables in the energy mix to a minimum of 30% by 2030
A75: Barbados | B75: Whole country | D75: 280.396 | E75: UNFCCC, GHG data | G75: 3.26539 | H75: 3.27639 | I75: 2000 | J75: 1.4 | K75: 1.4 | L75: 2008 | M75: 1.82 | AC75: =AF75*(1+AH75) -> 0.0014378 | AD75: =AF75*(1+AI75) -> 0.0014378 | AE75: 2008 | AF75: =M75/1000 -> 0.00182 | AH75: -0.21 | AI75: =AH75 -> -0.21 | AL75: =AO75*(1+AQ75) -> 0.0014014 | AM75: =AO75*(1+AR75) -> 0.0014014 | AN75: 2008 | AO75: =M75/1000 -> 0.00182 | AQ75: -0.23 | AR75: =AQ75 -> -0.23
A76: Belize | B76: Whole country | D76: 308.595 | E76: NC1:1994; NC3: 2006, 2009 | F76: 1994 | G76: =H76-3.5 -> 6 | H76: 9.5 | I76: 2006 | J76: =K76-9.208 -> 9.028 | K76: 18.236 | L76: 2009 | M76: =N76-8.778 -> 5.511 | N76: 14.289 | AL76: Sectoral goals
A77: Bolivia | D77: 10156.601 | E77: NC!: 1990; NC2: 2004 | G77: 38.58594 | H77: 15.32357 | I77: 2004 | J77: 74.51837 | K77: =J77-50.32909+18.37867 -> 42.56795 | AL77: Sectoral goals
A78: Brazil | B78: Whole country | D78: 195210.154 | E78: UNFCCC, GHG data: 1990, 2005; 2010: GAP3 averages | G78: 1389.13772 | H78: 576.48172 | J78: 2191.85888 | K78: 862.80888 | M78: 2100 | N78: 1110.7 | R78: 2702.5 | S78: 1450.5 | T78: =W78*(1+Y78) -> 2.068443 | U78: =W78*(1+Z78) -> 1.977807 | V78: 2020 | W78: 3.237 | Y78: -0.361 | Z78: -0.389 | AC78: =AF78*(1+AH78) -> 1.323 | AD78: =AF78*(1+AI78) -> 1.323 | AE78: 2005 | AF78: =+M78/1000 -> 2.1 | AH78: -0.37 | AI78: =AH78 -> -0.37 | AL78: =AO78*(1+AQ78) -> 1.197 | AM78: =AO78*(1+AR78) -> 1.197 | AN78: 2005 | AO78: =+M78/1000 -> 2.1 | AQ78: -0.43 | AR78: =AQ78 -> -0.43 | BR78: 0 | BS78: 0 | BT78: Brazilian Government. Decree No. 7390. December 9, 2010 | BU78: Reducing deforestation by 80% by 2020 compared to average 1996-2005 level (PPCDAm) | BV78: Ministerio do Meio Ambiente Press Office, Brazil presents its proposal for the UN Convention on Climate Change, November 2009. J12/sitio/en/index.php?ido=ascom.noticiaMMA&idEstrutura=8&codigo=5329
A79: Brazil | B79: Acre | D79: 790 | E79: Under 2 MOU
A80: Brazil | B80: Sao Paulo | D80: 44035 | E80: CDP States and Regions responses 2015 | K80: 78.584 | T80: =X80*(1+Y80) -> 0.0628672 | U80: =X80*(1+Z80) -> 0.0628672 | V80: 2005 | X80: =+K80/1000 -> 0.078584 | Y80: -0.2 | Z80: =Y80 -> -0.2
A81: Brazil | B81: - | C81: Sao Paulo | D81: 11900 | E81: C40 | I81: 2003 | J81: 15.115 | T81: =W81*(1+Y81) -> 0.0105805 | U81: =W81*(1+Z81) -> 0.0105805 | V81: 2005 | W81: =J81/1000 -> 0.015115 | Y81: -0.3 | Z81: =Y81 -> -0.3
A82: Brazil | C82: Belo Horisonte | D82: 2491 | E82: Carbonn | I82: 2007 | K82: 3.177 | L82: 2013 | N82: 4.214 | O82: 2013 | Q82: 4.214 | T82: =X82*(1+Y82) -> 0.0025416 | U82: =X82*(1+Z82) -> 0.0025416 | V82: 2007 | X82: =+K82/1000 -> 0.003177 | Y82: -0.2 | Z82: -0.2
A83: Brazil | C83: Rio de Janeiro | D83: 6450 | E83: C40 | J83: 22.96 | L83: 2012 | M83: 20.75824 | O83: 2012 | P83: =M83 -> 20.75824 | T83: =W83*(1+Y83) -> 0.018368 | U83: =W83*(1+Z83) -> 0.018368 | V83: 2005 | W83: =J83/1000 -> 0.02296 | Y83: -0.2 | Z83: =Y83 -> -0.2
A84: Canada | B84: Whole country | D84: 34126.24 | E84: BR1, Canada's Emission Trends, aug 2012 | G84: 529.451 | H84: 591.079 | J84: 800.142 | K84: 737.457 | M84: 804.044 | N84: 700.791 | R84: 745 | S84: 720 | T84: =R84/1000 -> 0.745 | U84: =W84*(1+Z84) -> 0.66411786 | V84: 2005 | W84: =J84/1000 -> 0.800142 | Y84: -0.17 | Z84: -0.17 | AL84: =AO84*(1+AQ84) -> 0.5600994 | AM84: =AO84*(1+AR84) -> 0.5600994 | AN84: 2005 | AO84: =+J84/1000 -> 0.800142 | AQ84: -0.3 | AR84: -0.3 | BT84: Canada's Emission Trends 2012 | BV84: FCCC/KP/AWG/2009/10/Add.4/Rev.2 19 Oct. 2009
A85: Canada | B85: British Colombia | D85: 4583 | E85: Under 2 MOU, CDP States and Regions responses 2015 | H85: =N85/0.96 -> 64.0625 | I85: 2007 | K85: 64.318 | L85: 2012 | N85: 61.5 | T85: =X85*(1+Y85) -> 0.04309306 | U85: =X85*(1+Z85) -> 0.04309306 | V85: 2007 | X85: =+K85/1000 -> 0.064318 | Y85: -0.33 | Z85: =Y85 -> -0.33 | BM85: =BP85*(1+BR85) -> 0.0128636 | BN85: =BP85*(1+BS85) -> 0.0128636 | BO85: 2007 | BP85: =+K85/1000 -> 0.064318 | BR85: -0.8 | BS85: =BR85 -> -0.8
A86: Canada | B86: - | C86: Colwood | D86: 16.1 | E86: Carbonn | I86: 2007 | K86: 0.065 | T86: 4.355e-05 | U86: 4.355e-05 | V86: 2007 | X86: =+K86/1000 -> 6.5e-05 | Y86: -0.33 | Z86: -0.33 | AL86: =AP86*(1+AQ86) -> 3.315e-05 | AM86: =AP86*(1+AR86) -> 3.315e-05 | AN86: 2005 | AP86: =+K86/1000 -> 6.5e-05 | AQ86: -0.49 | AR86: =AQ86 -> -0.49 | BM86: =BP86*(1+BR86) -> 1.3e-05 | BN86: =BP86*(1+BS86) -> 1.3e-05 | BO86: 2007 | BP86: =+K86/1000 -> 6.5e-05 | BR86: -0.8 | BS86: =BR86 -> -0.8
A87: Canada | B87: - | C87: Delta | D87: 99.86 | E87: Carbonn | N87: 0.846 | T87: 0.00056682 | U87: 0.00056682 | V87: 2007 | X87: =+N87/1000 -> 0.000846 | Y87: -0.33 | Z87: -0.33
A88: Canada | B88: - | C88: Vancouver | D88: 603 | E88: CNCA, Under 2 MOU, C40 | I88: 2007 | K88: 2.75 | L88: 2012 | N88: 2.55 | T88: 0.0018425 | U88: 0.0018425 | V88: 2007 | X88: =+K88/1000 -> 0.00275 | Y88: -0.33 | Z88: -0.33 | BM88: 0 | BN88: 0 | BR88: -1 | BS88: =BR88 -> -1
A89: Canada | B89: - | C89: Maple Ridge | D89: 76 | E89: Carbonn | I89: 2007 | K89: 0.381979 | N89: 0.337 | T89: =X89*(1+Y89) -> 0.00025592593 | U89: =X89*(1+Z89) -> 0.00025592593 | V89: 2007 | X89: =+K89/1000 -> 0.000381979 | Y89: -0.33 | Z89: =Y89 -> -0.33 | BM89: =BQ89*(1+BR89) -> 7.63958e-05 | BN89: =BQ89*(1+BS89) -> 7.63958e-05 | BO89: 2007 | BQ89: =+K89/1000 -> 0.000381979 | BR89: -0.8 | BS89: =BR89 -> -0.8 | BT89: track0.org/cities-regions | BV89: http://mapleridge.ca/DocumentCenter/View/924
A90: Canada | B90: - | C90: Surrey | D90: 508 | E90: Carbonn | N90: 2.118 | BM90: =BQ90*(1+BR90) -> 0.0004236 | BN90: =BQ90*(1+BS90) -> 0.0004236 | BO90: 2007 | BQ90: =+N90/1000 -> 0.002118 | BR90: -0.8 | BS90: =BR90 -> -0.8
A91: Canada | B91: Manitoba | D91: 1208 | E91: CDP States and Regions responses 2015 | K91: =N91/1.03 -> 20.77669903 | L91: 2013 | N91: 21.4 | T91: 0.01766019417 | U91: 0.01766019417 | V91: 2005 | X91: =+K91/1000 -> 0.02077669903 | Y91: -0.15 | Z91: -0.15 | AL91: =AP91*(1+AQ91) -> 0.01392038835 | AM91: =AP91*(1+AR91) -> 0.01392038835 | AN91: 2005 | AP91: =+K91/1000 -> 0.02077669903 | AQ91: -0.33 | AR91: =AQ91 -> -0.33 | BU91: Will be carbon neutral in 2080 | BV91: http://www.cbc.ca/news/canada/manitoba/manitoba-climate-change-plan-1.3348572
A92: Canada | B92: - | C92: Winnipeg | D92: 664 | E92: CDP | I92: 1998 | K92: 5.28 | T92: 0.0049632 | U92: 0.0049632 | V92: 1998 | X92: =+K92/1000 -> 0.00528 | Y92: -0.06 | Z92: -0.06
A93: Canada | B93: New Foundland and Labrador | D93: 515 | E93: CDP States and Regions responses 2015 | H93: 9.75 | I93: 2001 | K93: 9.93 | T93: 0.0078 | U93: 0.0078 | V93: 1990 | X93: =+H93/1000 -> 0.00975 | Y93: -0.2 | Z93: -0.2 | BM93: =BP93*(1+BR93) -> 0.0024825 | BN93: =BP93*(1+BS93) -> 0.0024825 | BO93: 2001 | BP93: =+K93/1000 -> 0.00993 | BR93: -0.75 | BS93: =BR93 -> -0.75
A94: Canada | B94: Northwest Territories | D94: 41.46 | E94: CDP States and Regions responses 2015 | K94: 1.656 | L94: 2013 | N94: 1.456 | O94: 2013 | Q94: 1.456 | T94: 0.00274896 | U94: 0.00274896 | V94: 2005 | X94: =+K94/1000 -> 0.001656 | Y94: 0.66 | Z94: 0.66 | AL94: =AP94*(1+AQ94) -> 0.001656 | AM94: =AP94*(1+AR94) -> 0.001656 | AN94: 2005 | AP94: =+K94/1000 -> 0.001656 | AQ94: 0 | AR94: =AQ94 -> 0
A95: Canada | B95: Ontario | D95: 12851 | E95: Under 2 MOU, CDP States and Regions responses 2015 | H95: 177 | L95: 2012 | N95: 167 | T95: 0.15045 | U95: 0.15045 | V95: 1990 | X95: =+H95/1000 -> 0.177 | Y95: -0.15 | Z95: -0.15 | AL95: =AP95*(1+AQ95) -> 0.11151 | AM95: =AP95*(1+AR95) -> 0.11151 | AN95: 1990 | AP95: =+H95/1000 -> 0.177 | AQ95: -0.37 | AR95: =AQ95 -> -0.37 | BM95: =BP95*(1+BR95) -> 0.0354 | BN95: =BP95*(1+BS95) -> 0.0354 | BO95: 1990 | BP95: =H95/1000 -> 0.177 | BR95: -0.8 | BS95: =BR95 -> -0.8
A96: Canada | B96: - | C96: Toronto | D96: 2750 | E96: C40 | H96: 27.33 | L96: 2011 | N96: 20.66282141 | BM96: =BP96*(1+BR96) -> 0.005466 | BN96: =BP96*(1+BS96) -> 0.005466 | BO96: 1990 | BP96: =H96/1000 -> 0.02733 | BR96: -0.8 | BS96: =BR96 -> -0.8
A97: Canada | B97: - | C97: Ajax | D97: 109.6 | E97: Carbonn | K97: 0.52125 | T97: =X97*(1+Y97) -> 0.000489975 | U97: =X97*(1+Z97) -> 0.000489975 | V97: 2005 | X97: =+K97/1000 -> 0.00052125 | Y97: -0.06 | Z97: =Y97 -> -0.06
A98: Canada | B98: - | C98: Caledon | D98: 59.46 | E98: Carbonn | I98: 2006 | K98: 0.196 | T98: 3.332e-05 | U98: 3.332e-05 | V98: 2006 | X98: =+K98/1000 -> 0.000196 | Y98: -0.83 | Z98: -0.83
A99: Canada | B99: Quebec | D99: 7903 | E99: Under 2 MOU, CDP States and Regions responses 2015 | H99: =N99/0.92 -> 84.76086957 | L99: 2012 | N99: 77.98 | T99: 0.06780869565 | U99: 0.06780869565 | V99: 1990 | X99: =+H99/1000 -> 0.08476086957 | Y99: -0.2 | Z99: -0.2 | AL99: =AP99*(1+AQ99) -> 0.05297554348 | AM99: =AP99*(1+AR99) -> 0.05297554348 | AN99: 1990 | AP99: =+H99/1000 -> 0.08476086957 | AQ99: -0.375 | AR99: =AQ99 -> -0.375 | BM99: =BP99*(1+BR99) -> 0.01695217391 | BN99: =BP99*(1+BS99) -> 0.01695217391 | BO99: 1990 | BP99: =H99/1000 -> 0.08476086957 | BR99: -0.8 | BS99: =BR99 -> -0.8
A100: Canada | B100: - | C100: Montreal | D100: 1649 | E100: CDP, Carbonn | H100: 14.97 | L100: 2009 | N100: 13.722942 | T100: 0.010479 | U100: 0.010479 | V100: 1990 | X100: =+H100/1000 -> 0.01497 | Y100: -0.3 | Z100: -0.3
A101: Canada | B101: Alberta | D101: 3645 | E101: CDP States and Regions responses 2015 | T101: 0.26712 | U101: 0.26712 | V101: 2020 | X101: 0.318 | Y101: -0.16 | Z101: -0.16 | BM101: =BP101*(1+BR101) -> 0.199 | BN101: =BP101*(1+BS101) -> 0.199 | BO101: 2050 | BP101: 0.398 | BR101: -0.5 | BS101: =BR101 -> -0.5
A102: Canada | B102: - | C102: Calgary | D102: 1097 | E102: Carbonn | H102: 11.871 | K102: 15.793 | L102: 2009 | N102: 16.561 | T102: 0.0126344 | U102: 0.0126344 | V102: 2005 | X102: =+K102/1000 -> 0.015793 | Y102: -0.2 | Z102: -0.2 | AU102: =AY102*(1+AZ102) -> 0.0059355 | AV102: =AY102*(1+BA102) -> 0.0059355 | AW102: 1990 | AY102: =H102/1000 -> 0.011871 | AZ102: -0.5 | BA102: =AZ102 -> -0.5 | BM102: =BQ102*(1+BR102) -> 0.0031586 | BN102: =BQ102*(1+BS102) -> 0.0031586 | BO102: 2010 | BQ102: =+K102/1000 -> 0.015793 | BR102: -0.8 | BS102: =BR102 -> -0.8 | BT102: track0.org/cities-regions
A103: Chile | B103: Whole country | D103: 17150.76 | E103: BUR1: 1990, 2005, 2010 | G103: -0.925 | H103: 49.8966 | J103: 37.3811 | K103: 82.0052 | M103: 41.6985 | N103: 91.5759 | V103: 2020 | Y103: -0.2 | Z103: -0.2 | AL103: CO2 intensity goals | BU103: 45% of power generation installed between now and 2025 will come from renewable energy sources | BV103: Copenhagen Accord
A104: Colombia | B104: Whole country | D104: 46444.798 | E104: UNFCCC, GHG data: 1990, NC2: 2004 | G104: 129.92475 | H104: 118.72957 | I104: 2004 | J104: 180.009 | K104: 153.994 | M104: 223.97 | R104: =W104 -> 0.2786 | T104: =0.2462 -> 0.2462 | W104: 0.2786 | Y104: =(T104-W104)/T104 -> -0.1316003249 | Z104: =Y104 -> -0.1316003249 | AA104: 0.3115 | AC104: =0.2558 -> 0.2558 | AF104: =AA104 -> 0.3115 | AJ104: =AO104 -> 0.335 | AL104: =AJ104*(1+AQ104) -> 0.268 | AM104: =AJ104*(1+AR104) -> 0.2345 | AN104: 2030 | AO104: 0.335 | AQ104: -0.2 | AR104: -0.3
A105: Colombia | C105: Bogota | D105: 7879 | E105: Carbonn | I105: 2008 | K105: 16.279 | O105: 2013 | Q105: 16.077576 | T105: =X105*(1+Y105) -> 0.01367436 | U105: =X105*(1+Z105) -> 0.01367436 | V105: 2007 | X105: =+K105/1000 -> 0.016279 | Y105: -0.16 | Z105: =Y105 -> -0.16 | BD105: =BH105*(1+BI105) -> 0.00716276 | BE105: =BH105*(1+BJ105) -> 0.00716276 | BF105: 2008 | BH105: =+K105/1000 -> 0.016279 | BI105: -0.56 | BJ105: =BI105 -> -0.56 | BM105: =BQ105*(1+BS105) -> 0.00618602 | BN105: =BQ105*(1+BR105) -> 0.00618602 | BO105: 2008 | BQ105: =+K105/1000 -> 0.016279 | BR105: -0.62 | BS105: =BR105 -> -0.62 | BV105: www.compactofmayors.org/content/uploads/sites/14/2015/06/youblisher.com-1266029-Plan_Distrital_de_Adaptaci_n_y_Mitigaci_na_al_Cambio_Clim_tico.pdf
A106: Colombia | C106: Monteria | D106: 422 | E106: Carbonn | L106: 2012 | N106: 0.918 | T106: =X106*(1+Y106) -> 0.0007344 | U106: =X106*(1+Z106) -> 0.0007344 | V106: 2009 | X106: =+N106/1000 -> 0.000918 | Y106: -0.2 | Z106: =Y106 -> -0.2
A107: Costa Rica | B107: Whole country | D107: 4669.685 | E107: NC2: 1990; BUR1: 2005, 2010, 2012 | G107: 8.52946 | H107: 6.09136 | J107: 6.68993 | K107: =J107+0.5 -> 7.18993 | M107: 9.61715 | N107: =M107+0.5 -> 10.11715 | O107: 2012 | P107: 11.2502 | Q107: =P107+2.07765 -> 13.32785 | R107: 14 | S107: 18 | T107: =10.907506/1000 -> 0.010907506 | U107: =T107 -> 0.010907506 | V107: 2020 | AL107: =9.373552/1000 -> 0.009373552 | AM107: =AL107 -> 0.009373552 | BM107: =5.964988/1000 -> 0.005964988 | BN107: =BM107 -> 0.005964988
A108: Cuba | B108: Whole country | D108: 11281.768 | E108: NC2: 1990, 2002 | G108: =H108-10.60459 -> 37.06697 | H108: 47.67156 | I108: 2002 | J108: =K108-13.19432 -> 23.146 | K108: 36.34032 | N108: 40 | W108: 0.278 | AL108: Sectoral goals | AN108: 2030
A109: Dominica | B109: Whole country | D109: 71.167 | E109: UNFCCC, GHG data, 2nd NC | F109: 1994 | G109: -0.219 | H109: 0.15219 | J109: 0.0542 | K109: 0.180746 | L109: 2014 | M109: =N109-0.1 -> 0.0645 | N109: 0.1645 | O109: 2014 | P109: =Q109-0.1 -> 0.0645 | Q109: 0.1645 | T109: =X109*(1+Y109) -> 0.0001350545 | U109: =X109*(1+Z109) -> 0.0001350545 | V109: 2014 | X109: =+N109/1000 -> 0.0001645 | Y109: -0.179 | Z109: =Y109 -> -0.179 | AC109: =AG109*(1+AH109) -> 0.000100016 | AD109: =AG109*(1+AI109) -> 0.000100016 | AE109: 2014 | AG109: =+N109/1000 -> 0.0001645 | AH109: -0.392 | AI109: =AH109 -> -0.392 | AL109: =AP109*(1+AQ109) -> 9.09685e-05 | AM109: =AP109*(1+AR109) -> 9.09685e-05 | AN109: 2014 | AP109: =+N109/1000 -> 0.0001645 | AQ109: -0.447 | AR109: =AQ109 -> -0.447 | BT109: Greenhouse Gas Mitigation Asessment for Dominica, Oct. 2010 | BV109: NAMA0216: Implementation of the Low Carbon Climate Resilient Development Strategy.
A110: Dominican Republic | B110: Whole country | D110: 10016.797 | E110: UNFCCC, GHG data | G110: 7.08493 | H110: 12.64 | I110: 2000 | J110: 7.639 | K110: 26.43324 | N110: =3.6*10.02 -> 36.072 | AL110: =AM110 -> 0.027054 | AM110: =AO110*(1+AR110) -> 0.027054 | AN110: 2030 | AO110: =N110/1000 -> 0.036072 | AQ110: -0.25 | AR110: -0.25 | BT110: Climate Compatible Development Plan (CCDP) | BU110: The reduction in 2030 should be 25 MtCO2e | BV110: http://blogs.worldwatch.org/revolt/wp-content/uploads/2011/09/DR-ClimateCompatibleDevPlan-Sep-2011.pdf
A111: Ecuador | B111: Whole country | D111: 15001.072 | E111: NC2: 1990, 2006, | G111: 265.14309 | H111: 178.6468 | I111: 2006 | J111: 410.13776 | K111: 247.98974 | M111: 71.8 | AL111: Sectoral goals
A112: Ecuador | C112: Quito | D112: 2240 | E112: C40 | L112: 2011 | N112: 5.16 | AC112: =AG112*(1+AH112) -> 0.003612 | AD112: =AG112*(1+AI112) -> 0.003612 | AE112: 2010 | AG112: =N112/1000 -> 0.00516 | AH112: -0.3 | AI112: =AH112 -> -0.3
A113: El Salvador | B113: Whole country | D113: 6218.195 | E113: UNFCCC, GHG data: 1994; NC2: 2005 | F113: 1994 | G113: 15.65951 | H113: 11.71671 | J113: 14.4534 | K113: =J113-3.38019 -> 11.07321 | AC113: Study underway
A114: Grenada | B114: Whole country | D114: 104.677 | E114: UNFCCC, GHG data: 1994 | F114: 1994 | G114: 1.51447 | H114: 1.60647 | M114: 0.251649 | R114: 0.27 | T114: 0.000193 | U114: =T114 -> 0.000193 | V114: 2010 | W114: =M114/1000 -> 0.000251649 | Y114: =(T114-W114)/W114 -> -0.2330587445 | Z114: =Y114 -> -0.2330587445 | AA114: 0.000287 | AC114: =AF114*(1+AH114) -> 0.0001761543 | AD114: =AF114*(1+AI114) -> 0.0001761543 | AE114: 2010 | AF114: =+M114/1000 -> 0.000251649 | AH114: -0.3 | AI114: =AH114 -> -0.3 | AJ114: 0.000305 | AK114: =AJ114 -> 0.000305 | AL114: =AO114*(1+AQ114) -> 0.0001509894 | AM114: =AO114*(1+AR114) -> 0.0001509894 | AN114: 2010 | AO114: =+M114/1000 -> 0.000251649 | AQ114: -0.4 | AR114: =AQ114 -> -0.4
A115: Guatemala | B115: Whole country | D115: 14341.576 | E115: NC1: 1990, NC2: 2005 | G115: =H115-42.9 -> -24.8 | H115: 18.1 | J115: 6.953875 | K115: =31.45 -> 31.45 | N115: =K115+0.9*5 -> 35.95 | S115: =(K115+0.9*10)/1000 -> 0.04045 | T115: =(K115+0.45*10)/1000 -> 0.03595 | U115: =(K115+0.73*10)/1000 -> 0.03875 | V115: 2020 | W115: =S115 -> 0.04045 | Y115: =(U115-W115)/U115 -> -0.04387096774 | Z115: =Y115 -> -0.04387096774 | AB115: =(N115+0.9*15)/1000 -> 0.04945 | AC115: =(K115+0.45*15)/1000 -> 0.0382 | AD115: =(K115+0.73*15)/1000 -> 0.0424 | AK115: =53.85/1000 -> 0.05385 | AL115: =AP115*(1+AQ115) -> 0.0478188 | AM115: =AP115*(1+AR115) -> 0.0416799 | AN115: 2030 | AP115: =AK115 -> 0.05385 | AQ115: -0.112 | AR115: -0.226
A116: Guyana | B116: Whole country | D116: 786.126 | E116: NC2: 1990, 2004 | G116: =H116-60.818 -> -58.151 | H116: 2.667 | I116: 2004 | J116: =K116-59.333 -> -54.716 | K116: 4.617 | AC116: =+J116/1000 -> -0.054716 | AD116: =(J116-52)/1000 -> -0.106716 | AE116: 2025
A117: Haiti | B117: Whole country | D117: 9896.4 | E117: NC2: 1995, 2000 | F117: 1995 | G117: 6.5 | H117: 6.01474 | I117: 2000 | J117: 7.832 | K117: 7.36828 | M117: 8 | AA117: =20.8/1000 -> 0.0208 | AC117: =AF117*(1+AH117) -> 0.01976 | AD117: =AF117*(1+AI117) -> 0.015392 | AE117: 2030 | AF117: =+AA117 -> 0.0208 | AH117: -0.05 | AI117: -0.26
A118: Honduras | B118: Whole country | D118: 7621.204 | E118: NC2: 1995, 2000 | F118: 1995 | G118: 11.852 | H118: =G118+52.76311 -> 64.61511 | I118: 2000 | J118: 13.82894 | K118: 66.3442 | R118: 22.027 | AJ118: =28.922/1000 -> 0.028922 | AL118: ? | AM118: =AO118*(1+AR118) -> 0.0245837 | AN118: 2030 | AO118: =AJ118 -> 0.028922 | AQ118: 0 | AR118: -0.15
A119: Jamaica | B119: Whole country | D119: 2741.485 | E119: Edgar4.2: 1990, 2010 | G119: 9.31922 | H119: =G119 -> 9.31922 | J119: 10.572 | K119: =J119 -> 10.572 | M119: 14.58168 | N119: =M119 -> 14.58168 | AA119: =13.443/1000 -> 0.013443 | AC119: 0.01237 | AD119: 0.012099 | AE119: 2025 | AF119: =AA119 -> 0.013443 | AJ119: =14.492/1000 -> 0.014492 | AL119: =AO119*(1+AQ119) -> 0.013361624 | AM119: =AO119*(1+AR119) -> 0.0130428 | AN119: 2030 | AO119: =AJ119 -> 0.014492 | AQ119: -0.078 | AR119: -0.1
A120: Mexico | B120: Whole country | D120: 117886.404 | E120: NC5:1990 (& 2000), 2005, 2010. INDC: 2020BAU, 2030BAU | G120: =H120+102.28 -> 561.0344 | H120: 458.7544 | J120: =K120+50 -> 664.6475 | K120: 614.6475 | M120: =N120+46.8914 -> 748.3333 | N120: 701.4419 | R120: =S120 -> 792 | S120: 792 | T120: =R120/1000 -> 0.792 | U120: =W120*(1+Z120) -> 0.5544 | V120: 2020 | W120: =R120/1000 -> 0.792 | Y120: 0 | Z120: -0.3 | AA120: 0.888 | AJ120: 0.973 | AL120: =AO120*(1+AQ120) -> 0.75894 | AM120: =+AO120*(1+AR120) -> 0.62272 | AN120: 2030 | AO120: =+AJ120 -> 0.973 | AQ120: -0.22 | AR120: -0.36 | BM120: =BP120*(1+BR120) -> 0.3199845 | BN120: =BP120*(1+BS120) -> 0.3199845 | BO120: 2000 | BP120: 0.639969 | BR120: -0.5 | BS120: =BR120 -> -0.5 | BT120: Mexico's 5th National Communication, dec 2012 | BU120: Reach a rate of 0% deforestation by the year 2030. 25% electricity coming from renewables before 2018 | BV120: Mexico's 5th National Communication, dec 2012
A121: Mexico | B121: Baja California | D121: 3155 | E121: Under 2 MOU | K121: 17.684 | AL121: =AP121*(1+AQ121) -> 0.0141472 | AM121: =AP121*(1+AR121) -> 0.0123788 | AN121: 2005 | AP121: =+K121/1000 -> 0.017684 | AQ121: -0.2 | AR121: -0.3 | BV121: http://www3.epa.gov/region9/climatechange/pdfs/ghg-baja-executive-summary.pdf
A122: Mexico | B122: Jalisco | D122: 7000 | E122: Under 2 MOU | M122: 42.001 | AL122: =AO122*(1+AQ122) -> 0.0294007 | AM122: =AO122*(1+AR122) -> 0.0294007 | AN122: 2010 | AO122: =+M122/1000 -> 0.042001 | AQ122: -0.3 | AR122: =AQ122 -> -0.3 | BM122: =BP122*(1+BR122) -> 0.0210005 | BN122: =BP122*(1+BS122) -> 0.0210005 | BO122: 2010 | BP122: =+M122/1000 -> 0.042001 | BR122: -0.5 | BS122: =BR122 -> -0.5
A123: Mexico | C123: Hermosillo | D123: 785 | E123: Carbonn | N123: 4.952 | BM123: =BQ123*(1+BR123) -> 0.002476 | BN123: =BQ123*(1+BS123) -> 0.002476 | BO123: 2010 | BQ123: =+N123/1000 -> 0.004952 | BR123: -0.5 | BS123: =BR123 -> -0.5
A124: Mexico | C124: Puebla | D124: 1540 | E124: Carbonn | L124: 2012 | N124: 3.287 | T124: =X124*(1+Y124) -> 0.00322126 | U124: =X124*(1+Z124) -> 0.00322126 | V124: 2012 | X124: =+N124/1000 -> 0.003287 | Y124: -0.02 | Z124: =Y124 -> -0.02
A125: Mexico | C125: Toluca de Lerdo | D125: 820 | E125: Carbonn | N125: 4.378 | AC125: =+AG125*(1+AH125) -> 0.0019701 | AD125: =+AG125*(1+AI125) -> 0.0019701 | AE125: 2010 | AG125: =+N125/1000 -> 0.004378 | AH125: -0.55 | AI125: =AH125 -> -0.55
A126: Nicaragua | B126: Whole country | D126: 5822.209 | E126: UNFCCC, GHG data | F126: 1994 | G126: 5.40482 | H126: 7.65184 | I126: 2000 | J126: 59.47664 | K126: 11.98064
A127: Panama | B127: Whole country | D127: 3678.128 | E127: UNFCCC, GHG data, 2nd NC | F127: 1994 | G127: 34.4 | H127: 10.7 | I127: 2000 | J127: -1.87146 | K127: 5.17199
A128: Paraguay | B128: Whole country | D128: 6459.721 | E128: UNFCCC, GHG data: 1990; NC2: 2000 | F128: 1994 | G128: 62.6 | H128: 56.2 | I128: 2000 | J128: =K128+67.18083-1.08865 -> 69.74903 | K128: 3.65685 | L128: 2011 | M128: 140 | R128: 232 | AJ128: 0.416 | AL128: =AO128*(1+AQ128) -> 0.3744 | AM128: =AO128*(1+AR128) -> 0.3328 | AN128: 2030 | AO128: =AJ128 -> 0.416 | AQ128: -0.1 | AR128: -0.2
A129: Peru | B129: Whole country | D129: 29262.83 | E129: NC1: 1994; NC3: 2005, 2010, 2012 | F129: 1994 | G129: 98.8163 | H129: 57.58287 | J129: 184.91061 | K129: 63.87593 | M129: =170.36581 -> 170.36581 | N129: 80.45864 | O129: 2012 | P129: 171.30957 | Q129: =P129-86.742 -> 84.56757 | AJ129: =298.3/1000 -> 0.2983 | AK129: =139.3/1000 -> 0.1393 | AL129: =AO129*(1+AQ129) -> 0.23864 | AM129: =AO129*(1+AR129) -> 0.20881 | AN129: 2030 | AO129: =AJ129 -> 0.2983 | AQ129: -0.2 | AR129: -0.3 | BU129: Statement from Minister Quintanilla of Peru, it commits Peru to 60% renewables in power by 2024
A130: Saint Kitts and Nevis | B130: Whole country | D130: 52.352 | E130: NC1: 1994, NC2: 2005, 2008 | F130: 1994 | G130: 0.0764 | H130: 0.16441 | J130: =K130-0.137 -> 0.4293783 | K130: =0.5+(0.00069+0.0011423)*21+0.00009*310 -> 0.5663783 | L130: 2008 | M130: =N130-0.137 -> 0.1793783 | N130: =0.25+(0.00069+0.0011423)*21+0.00009*310 -> 0.3163783 | S130: 0.545 | T130: =S130/1000 -> 0.000545 | U130: =T130 -> 0.000545 | V130: 2020 | AB130: =0.676/1000 -> 0.000676 | AC130: =AG130*(1+AH130) -> 0.000676 | AD130: =AG130*(1+AI130) -> 0.00052728 | AE130: 2025 | AG130: =AB130 -> 0.000676 | AH130: 0 | AI130: -0.22 | AK130: =0.836/1000 -> 0.000836 | AL130: =AP130*(1+AQ130) -> 0.000836 | AM130: =AP130*(1+AR130) -> 0.0005434 | AN130: 2030 | AP130: =AK130 -> 0.000836 | AQ130: 0 | AR130: -0.35
A131: Saint Lucia | B131: Whole country | D131: 177.397 | E131: NC2: 1994, 2000 | F131: 1994 | G131: 0.5455 | H131: =G131-0.0846 -> 0.4609 | I131: 2000 | J131: 0.5728 | K131: =J131-0.0212 -> 0.5516 | M131: 0.643 | AA131: =0.758/1000 -> 0.000758 | AC131: =AF131*(1+AH131) -> 0.00063672 | AD131: =AF131*(1+AI131) -> 0.00063672 | AE131: 2025 | AF131: =AA131 -> 0.000758 | AH131: -0.16 | AI131: =AH131 -> -0.16 | AJ131: =0.816/1000 -> 0.000816 | AL131: =AO131*(1+AQ131) -> 0.00062832 | AM131: =AO131*(1+AR131) -> 0.00062832 | AN131: 2030 | AO131: =AJ131 -> 0.000816 | AQ131: -0.23 | AR131: =AQ131 -> -0.23 | BU131: 35% Renewable Energy Target by 2025 and 50% by 2030
A132: Saint Vincent and the Grenadines | B132: Whole country | D132: 109.316 | E132: NC1: 1990, 1997 | G132: 0.3 | H132: 0.4 | I132: 1997 | J132: 0.3 | K132: 0.4 | M132: 0.407 | R132: 0.53 | T132: =0.43/1000 -> 0.00043 | AA132: =0.6/1000 -> 0.0006 | AB132: =AA132 -> 0.0006 | AC132: =AF132*(1+AH132) -> 0.000468 | AD132: =AF132*(1+AI132) -> 0.000468 | AE132: 2025 | AF132: =AA132 -> 0.0006 | AH132: -0.22 | AI132: =AH132 -> -0.22
A133: Suriname | B133: Whole country | D133: 524.96 | E133: NC1: 2003 | F133: 2003 | G133: 4.929 | H133: =G133-1.477 -> 3.452 | I133: 2003 | J133: 4.929 | K133: =H133 -> 3.452 | M133: =7-8.8 -> -1.8 | N133: 7
A134: Trinidad and Tobago | B134: Whole country | D134: 1328.095 | E134: UNFCCC, GHG data | G134: =H134-1.5 -> 15.306 | H134: 16.806 | AJ134: =AK134 -> 0.0419 | AK134: =41.9/1000 -> 0.0419 | AL134: =AK134-0.0001 -> 0.0418 | AM134: =AK134-7.6/1000 -> 0.0343 | AN134: 2030 | AO134: =+AJ134 -> 0.0419 | AQ134: =-(AO134-AL134)/AO134 -> -0.002386634845 | AR134: =-(AO134-AM134)/AO134 -> -0.1813842482 | BU134: Conditional: 15% below BAU emission levels by December 31, 2030. Unconditional: 30% reduction in 2030 in the public transportation sector compared to 2013
A135: United States of America | B135: Whole country | D135: 312247.116 | E135: US inventory: 1990, 2005, 2010; BR1: BAU2020,BAU2025, BAU2030. | G135: 5525.2 | H135: 6301.1 | J135: 6438.3 | K135: 7350.2 | M135: 6027.2 | N135: 6898.8 | R135: 6201 | S135: 6815 | T135: =W135*(1+Y135) -> 5.343789 | U135: =W135*(1+Z135) -> 5.343789 | V135: 2005 | W135: =J135/1000 -> 6.4383 | Y135: -0.17 | Z135: -0.17 | AA135: =6394/1000 -> 6.394 | AB135: =6967/1000 -> 6.967 | AC135: =+AF135*(1+AH135) -> 4.764342 | AD135: =+AF135*(1+AI135) -> 4.635576 | AE135: 2005 | AF135: =J135/1000 -> 6.4383 | AH135: -0.26 | AI135: -0.28 | AJ135: =6476/1000 -> 6.476 | AK135: =7041/1000 -> 7.041 | AL135: =AO135*(1+AQ135) -> 4.764342 | AM135: =AO135*(1+AR135) -> 4.635576 | AN135: 2005 | AO135: =+AF135 -> 6.4383 | AQ135: =+AH135 -> -0.26 | AR135: =+AI135 -> -0.28 | BM135: =BP135*(1+BS135) -> 1.28766 | BN135: =BP135*(1+BR135) -> 1.28766 | BO135: 2005 | BP135: =J135/1000 -> 6.4383 | BR135: -0.8 | BS135: -0.8 | BT135: BR1: BAU, rest INDC | BU135: Inventory of U.S. Greenhouse Gas Emissions and Sinks: 1990-2013 | BV135: H.R. 2454: American American Clean Energy & Security Act of 2009 (Waxman-Markey Bill). Passed by the House of Representatives 26 June 2009. www.govtrack.us/congress/bill.xpd?bill=h111-2454
A136: United States of America | B136: California | D136: 37254 | E136: Under 2 MOU, CDP States and Regions responses 2015 | G136: 431 | L136: 2012 | M136: 458.685 | T136: =W136*(1+Y136) -> 0.431 | U136: =W136*(1+Z136) -> 0.431 | V136: 1990 | W136: =G136/1000 -> 0.431 | Y136: 0 | Z136: 0 | AL136: =AO136*(1+AQ136) -> 0.2586 | AM136: =AO136*(1+AR136) -> 0.2586 | AN136: 1990 | AO136: =+G136/1000 -> 0.431 | AQ136: -0.4 | AR136: =AQ136 -> -0.4 | BM136: =BP136*(1+BS136) -> 0.0862 | BN136: =BP136*(1+BR136) -> 0.0862 | BO136: 1990 | BP136: =G136/1000 -> 0.431 | BR136: -0.8 | BS136: -0.8
A137: United States of America | B137: - | C137: Los Angeles | D137: 3093 | E137: Under 2 MOU, C40, CDP: 2004, 2010 | H137: 54.1 | I137: 2004 | K137: 33.935814 | N137: 38.717974 | AC137: =+AG137*(1+AH137) -> 0.029755 | AD137: =+AG137*(1+AI137) -> 0.029755 | AE137: 1990 | AG137: =+H137/1000 -> 0.0541 | AH137: -0.45 | AI137: =AH137 -> -0.45 | AL137: =AP137*(1+AQ137) -> 0.02164 | AM137: =AP137*(1+AR137) -> 0.02164 | AN137: 1990 | AP137: =H137/1000 -> 0.0541 | AQ137: -0.6 | AR137: =AQ137 -> -0.6 | BM137: =BQ137*(1+BS137) -> 0.01082 | BN137: =BQ137*(1+BR137) -> 0.01082 | BO137: 1990 | BQ137: =+H137/1000 -> 0.0541 | BR137: -0.8 | BS137: =BR137 -> -0.8
A138: United States of America | B138: - | C138: San Francisco | D138: 805 | E138: CNCA, C40, CDP: 2012 | H138: 6.201949 | N138: 5.29504 | O138: 2012 | Q138: 4.88434 | AC138: =+AG138*(1+AH138) -> 0.0037211694 | AD138: =+AG138*(1+AI138) -> 0.0037211694 | AE138: 1990 | AG138: =+H138/1000 -> 0.006201949 | AH138: -0.4 | AI138: =AH138 -> -0.4 | BM138: =BQ138*(1+BS138) -> 0.0012403898 | BN138: =BQ138*(1+BR138) -> 0.0012403898 | BO138: 1990 | BQ138: =+H138/1000 -> 0.006201949 | BR138: -0.8 | BS138: =BR138 -> -0.8
A139: United States of America | B139: Connecticut | D139: 3577 | E139: CDP States and Regions responses 2015, Under 2 MOU | H139: 44.2 | I139: 2001 | K139: 46.6 | L139: 2012 | N139: =H139*0.895 -> 39.559 | T139: =X139*(1+Y139) -> 0.03978 | U139: =X139*(1+Z139) -> 0.03978 | V139: 1990 | X139: =+H139/1000 -> 0.0442 | Y139: -0.1 | Z139: =Y139 -> -0.1 | BM139: =BQ139*(1+BS139) -> 0.00932 | BN139: =BQ139*(1+BR139) -> 0.00932 | BO139: 2001 | BQ139: =+K139/1000 -> 0.0466 | BR139: -0.8 | BS139: =BR139 -> -0.8
A140: United States of America | B140: Hawaii | D140: 1360 | E140: CDP | H140: 13.66 | T140: =X140*(1+Y140) -> 0.01366 | U140: =X140*(1+Z140) -> 0.01366 | V140: 1990 | X140: =+H140/1000 -> 0.01366 | Y140: 0 | Z140: =Y140 -> 0
A141: United States of America | B141: Massachusetts | D141: 1271 | E141: Under 2 MOU | H141: 94 | L141: 2012 | N141: 72 | T141: =X141*(1+Y141) -> 0.0705 | U141: =X141*(1+Z141) -> 0.0705 | V141: 1990 | X141: =+H141/1000 -> 0.094 | Y141: -0.25 | Z141: =Y141 -> -0.25 | BM141: =BQ141*(1+BS141) -> 0.0188 | BN141: =BQ141*(1+BR141) -> 0.0188 | BO141: 1990 | BQ141: =+H141/1000 -> 0.094 | BR141: -0.8 | BS141: =BR141 -> -0.8 | BT141: Massachusetts Global Warming Solutions Act (GWSA)
A142: United States of America | B142: - | C142: Boston | D142: 618 | E142: CNCA, C40 | K142: 7.567 | L142: 2012 | N142: 6 | T142: =X142*(1+Y142) -> 0.00567525 | U142: =X142*(1+Z142) -> 0.00567525 | V142: 2005 | X142: =K142/1000 -> 0.007567 | Y142: -0.25 | Z142: =Y142 -> -0.25 | BM142: =BQ142*(1+BS142) -> 0.0015134 | BN142: =BQ142*(1+BR142) -> 0.0015134 | BO142: 2005 | BQ142: =+K142/1000 -> 0.007567 | BR142: -0.8 | BS142: =BR142 -> -0.8
A143: United States of America | B143: Minnesota | D143: 5304 | E143: Under 2 MOU | H143: 119 | K143: 157.1 | L143: 2011 | N143: =K143*(1-0.12) -> 138.248 | AC143: =+AG143*(1+AH143) -> 0.10997 | AD143: =+AG143*(1+AI143) -> 0.10997 | AE143: 2005 | AG143: =+K143/1000 -> 0.1571 | AH143: -0.3 | AI143: =AH143 -> -0.3 | BM143: =BQ143*(1+BS143) -> 0.03142 | BN143: =BQ143*(1+BR143) -> 0.03142 | BO143: 2005 | BQ143: =+K143/1000 -> 0.1571 | BR143: -0.8 | BS143: -0.8
A144: United States of America | B144: - | C144: Minneapolis | D144: 383 | E144: CNCA | K144: 5.9 | N144: 5.1 | O144: 2012 | Q144: 4.396116 | AC144: =+AG144*(1+AH144) -> 0.00413 | AD144: =+AG144*(1+AI144) -> 0.00413 | AE144: 2005 | AG144: =+K144/1000 -> 0.0059 | AH144: -0.3 | AI144: =AH144 -> -0.3 | BM144: =BQ144*(1+BS144) -> 0.00118 | BN144: =BQ144*(1+BR144) -> 0.00118 | BO144: 2005 | BQ144: =+K144/1000 -> 0.0059 | BR144: -0.8 | BS144: =BR144 -> -0.8
A145: United States of America | B145: New Hampshire | D145: 1317 | E145: Under 2 MOU | H145: 15.79 | K145: 22.45 | AB145: 0.03136 | AC145: =+AG145*(1+AH145) -> 0.012632 | AD145: =+AG145*(1+AI145) -> 0.012632 | AE145: 1990 | AG145: =+H145/1000 -> 0.01579 | AH145: -0.2 | AI145: =AH145 -> -0.2 | BL145: 0.04295 | BM145: =BQ145*(1+BS145) -> 0.003158 | BN145: =BQ145*(1+BR145) -> 0.003158 | BO145: 1990 | BQ145: =+H145/1000 -> 0.01579 | BR145: -0.8 | BS145: =BR145 -> -0.8 | BV145: http://www.nhcf.org/document.doc?id=37
A146: United States of America | B146: - | C146: Burlington | D146: 42 | E146: CDP | I146: 2007 | K146: 0.402 | N146: =0.28753599 -> 0.28753599 | T146: =X146*(1+Y146) -> 0.0003216 | U146: =X146*(1+Z146) -> 0.0003216 | V146: 2007 | X146: =K146/1000 -> 0.000402 | Y146: -0.2 | Z146: =Y146 -> -0.2
A147: United States of America | B147: New York | D147: 19500 | E147: Under 2 MOU, CDP, RGGI, CDP States and Regions responses 2015 | H147: 230.76 | L147: 2011 | N147: =H147*0.92 -> 212.2992 | AL147: =AP147*(1+AQ147) -> 0.138456 | AM147: =AP147*(1+AR147) -> 0.138456 | AN147: 1990 | AP147: =H147/1000 -> 0.23076 | AQ147: -0.4 | AR147: =AQ147 -> -0.4 | BM147: =BQ147*(1+BS147) -> 0.046152 | BN147: =BQ147*(1+BR147) -> 0.046152 | BO147: 1990 | BQ147: =+H147/1000 -> 0.23076 | BR147: -0.8 | BS147: -0.8
A148: United States of America | B148: - | C148: New York City | D148: 8175 | E148: CNCA, C40 | K148: =N148/0.81 -> 56.69602222 | L148: 2012 | N148: 45.923778 | O148: 2012 | Q148: =N148 -> 45.923778 | AC148: =+AG148*(1+AH148) -> 0.03685241444 | AD148: =+AG148*(1+AI148) -> 0.03685241444 | AE148: 2005 | AG148: =+K148/1000 -> 0.05669602222 | AH148: -0.35 | AI148: =AH148 -> -0.35 | BM148: =BQ148*(1+BS148) -> 0.01133920444 | BN148: =BQ148*(1+BR148) -> 0.01133920444 | BO148: 2005 | BQ148: =+K148/1000 -> 0.05669602222 | BR148: -0.8 | BS148: =BR148 -> -0.8
A149: United States of America | B149: Oregon | D149: 3831 | E149: Under 2 MOU, C40, CDP States and Regions responses 2015 | H149: 56.8 | K149: 68.8 | N149: 60.944 | T149: =X149*(1+Y149) -> 0.05112 | U149: =X149*(1+Z149) -> 0.05112 | V149: 1990 | X149: =+H149/1000 -> 0.0568 | Y149: -0.1 | Z149: =Y149 -> -0.1 | BM149: 0.015136 | BN149: 0.015136 | BO149: 2005 | BQ149: =+K149/1000 -> 0.0688 | BR149: -0.78 | BS149: -0.78 | BV149: www.oregon.gov/deq/AQ/Pages/Greenhouse-Gas-Inventory-Report.aspx
A150: United States of America | B150: - | C150: Portland | D150: 609 | E150: CNCA, C40 | H150: 8.98946 | L150: 2013 | N150: 7.695 | O150: 2013 | Q150: 7.695 | AL150: =AP150*(1+AQ150) -> 0.005393676 | AM150: =AP150*(1+AR150) -> 0.005393676 | AN150: 1990 | AP150: =H150/1000 -> 0.00898946 | AQ150: -0.4 | AR150: =AQ150 -> -0.4 | BM150: =BQ150*(1+BS150) -> 0.001797892 | BN150: =BQ150*(1+BR150) -> 0.001797892 | BO150: 1990 | BQ150: =+H150/1000 -> 0.00898946 | BR150: -0.8 | BS150: =BR150 -> -0.8
A151: United States of America | B151: Rhode Island | D151: 1055 | E151: Under 2 MOU | H151: 10.74 | N151: 12.25 | S151: 0.01263 | T151: =X151*(1+Y151) -> 0.009666 | U151: =X151*(1+Z151) -> 0.009666 | V151: 1990 | X151: =+H151/1000 -> 0.01074 | Y151: -0.1 | Z151: =Y151 -> -0.1 | AU151: =AY151*(1+AZ151) -> 0.005907 | AV151: =AY151*(1+BA151) -> 0.005907 | AW151: 1990 | AY151: =H151/1000 -> 0.01074 | AZ151: -0.45 | BA151: =AZ151 -> -0.45 | BM151: =BQ151*(1+BS151) -> 0.002148 | BN151: =BQ151*(1+BR151) -> 0.002148 | BO151: 1990 | BQ151: =+H151/1000 -> 0.01074 | BR151: -0.8 | BS151: =BR151 -> -0.8 | BV151: http://www.dem.ri.gov/climate/pdf/gginv2010.pdf
A152: United States of America | B152: Vermont | D152: 626 | E152: Under 2 MOU, RGGI, CDP States and Regions responses 2015 | H152: 8.11 | K152: 9.34 | N152: 8.269 | T152: =X152*(1+Y152) -> 0.004055 | U152: =X152*(1+Z152) -> 0.004055 | V152: 1990 | X152: =+H152/1000 -> 0.00811 | Y152: -0.5 | Z152: =Y152 -> -0.5 | BM152: 0.0142 | BN152: 0.0142 | BO152: 1990 | BQ152: =+H149/1000 -> 0.0568 | BR152: -0.75 | BS152: -0.75 | BV152: http://anr.vermont.gov/sites/anr/files/specialtopics/climate/documents/emissions/Vermont%20GHG%20Emissions%20Inventory%20Update%201990-2012_June%20-2015.pdf
A153: United States of America | B153: Washington | D153: 6725 | E153: Under 2 MOU, CDP States and Regions responses 2015 | H153: 88.4 | I153: 2008 | K153: 98.4 | N153: 94.1 | T153: 0.0884 | U153: 0.0884 | V153: 1990 | X153: =+H153/1000 -> 0.0884 | Y153: 0 | Z153: 0 | AU153: =AY153*(1+AZ153) -> 0.0663 | AV153: =AY153*(1+BA153) -> 0.0663 | AW153: 1990 | AY153: =H153/1000 -> 0.0884 | AZ153: -0.25 | BA153: =AZ153 -> -0.25 | BM153: 0.0442 | BN153: 0.0442 | BO153: 1990 | BQ153: =+H153/1000 -> 0.0884 | BR153: -0.5 | BS153: -0.5
A154: United States of America | B154: - | C154: Oakland | D154: 408 | E154: Carbonn | K154: 1.102 | T154: =X154*(1+Y154) -> 0.00070528 | U154: =X154*(1+Z154) -> 0.00070528 | V154: 2005 | X154: =+K154/1000 -> 0.001102 | Y154: -0.36 | Z154: =Y154 -> -0.36 | BM154: =BQ154*(1+BS154) -> 0.00018734 | BN154: =BQ154*(1+BR154) -> 0.00018734 | BO154: 2005 | BQ154: =+K154/1000 -> 0.001102 | BR154: -0.83 | BS154: -0.83 | BV154: http://www.abetteroakland.com/wp-content/uploads/2010/11/DraftECAP.pdf
A155: United States of America | B155: - | C155: Seattle | D155: 609 | E155: CNCA, C40, Under 2 MOU | I155: 2008 | K155: 4.1 | L155: 2012 | N155: 4 | T155: 0.00287 | U155: 0.00287 | V155: 2008 | X155: =K155/1000 -> 0.0041 | Y155: -0.3 | Z155: -0.3 | AL155: =AP155*(1+AQ155) -> 0.001722 | AM155: =AP155*(1+AR155) -> 0.001722 | AN155: 1990 | AP155: =K155/1000 -> 0.0041 | AQ155: -0.58 | AR155: =AQ155 -> -0.58 | BM155: =BQ155*(1+BS155) -> 0.000533 | BN155: =BQ155*(1+BR155) -> 0.000533 | BO155: 2005 | BQ155: =+K155/1000 -> 0.0041 | BR155: -0.87 | BS155: =BR155 -> -0.87
A156: United States of America | C156: Ann Arbor | D156: 116 | E156: Compact of Mayors | I156: 2000 | K156: 2.19 | N156: 2.2 | T156: 0.0016425 | U156: 0.0016425 | V156: 2000 | X156: =+K156/1000 -> 0.00219 | Y156: -0.25 | Z156: -0.25 | BM156: =BQ156*(1+BS156) -> 0.000219 | BN156: =BQ156*(1+BR156) -> 0.000219 | BO156: 2000 | BQ156: =+K156/1000 -> 0.00219 | BR156: -0.9 | BS156: =BR156 -> -0.9 | BV156: http://www.a2gov.org/departments/systems-planning/energy/Documents/CityofAnnArborClimateActionPlan_low%20res_12_17_12.pdf
A157: United States of America | C157: Antioch | D157: 109 | E157: Carbonn | K157: 0.357698 | BM157: =BQ157*(1+BS157) -> 7.15396e-05 | BN157: =BQ157*(1+BR157) -> 7.15396e-05 | BO157: 2005 | BQ157: =+K157/1000 -> 0.000357698 | BR157: -0.8 | BS157: =BR157 -> -0.8
A158: United States of America | C158: Aspen | D158: 6.6 | E158: Compact of Mayors | I158: 2004 | K158: 0.678 | O158: 2014 | Q158: 0.618 | T158: 0.0004746 | U158: 0.0004746 | V158: 2004 | X158: =+K158/1000 -> 0.000678 | Y158: -0.3 | Z158: -0.3 | BM158: =BQ158*(1+BS158) -> 0.0001356 | BN158: =BQ158*(1+BR158) -> 0.0001356 | BO158: 2004 | BQ158: =+K158/1000 -> 0.000678 | BR158: -0.8 | BS158: =BR158 -> -0.8 | BV158: www.aspenpitkin.com/Portals/0/docs/City/envhealth/2014%20Aspen%20Community-wide%20GHG%20Inventory.pdf
A159: United States of America | C159: Atlanta | D159: 448 | E159: Carbonn, CDP | L159: 2009 | N159: 10.3 | T159: 0.00824 | U159: 0.00824 | V159: 2009 | X159: =+N159/1000 -> 0.0103 | Y159: -0.2 | Z159: -0.2 | BD159: =BH159*(1+BI159) -> 0.00206 | BE159: =BH159*(1+BJ159) -> 0.00206 | BF159: 2009 | BH159: =+N159/1000 -> 0.0103 | BI159: -0.8 | BJ159: =BI159 -> -0.8 | BV159: https://atlantaclimateactionplan.wordpress.com/ghg-emissions-and-reduction-targets/
A160: United States of America | C160: Austin | D160: 790 | E160: C40, Carbonn, Under 2 Mou | N160: 14.5 | T160: =X160*(1+Y160) -> 0.01131 | U160: =X160*(1+Z160) -> 0.01131 | V160: 2010 | X160: =+N160/1000 -> 0.0145 | Y160: -0.22 | Z160: =Y160 -> -0.22 | AL160: =AP160*(1+AQ160) -> 0.007975 | AM160: =AP160*(1+AR160) -> 0.007975 | AN160: 2010 | AP160: =N160/1000 -> 0.0145 | AQ160: -0.45 | AR160: =AQ160 -> -0.45 | BD160: =BH160*(1+BI160) -> 0.00464 | BE160: =BH160*(1+BJ160) -> 0.00464 | BF160: 2010 | BH160: =+N160/1000 -> 0.0145 | BI160: -0.68 | BJ160: =BI160 -> -0.68 | BM160: 0.00145 | BN160: 0.00145 | BO160: 2010 | BQ160: =+N160/1000 -> 0.0145 | BR160: -0.9 | BS160: -0.9 | BV160: http://austintexas.gov/sites/default/files/files/Sustainability/FINAL_-_OOS_AustinClimatePlan_061015.pdf
A161: United States of America | C161: Baltimore | D161: 621 | E161: CDP | N161: 7.579 | T161: =X161*(1+Y161) -> 0.00644215 | U161: =X161*(1+Z161) -> 0.00644215 | V161: 2010 | X161: =+N161/1000 -> 0.007579 | Y161: -0.15 | Z161: =Y161 -> -0.15
A162: United States of America | C162: Beaverton | D162: 94 | E162: Carbonn | I162: 2008 | K162: 13 | BM162: =BQ162*(1+BS162) -> 0.00325 | BN162: =BQ162*(1+BR162) -> 0.00325 | BO162: 2008 | BQ162: =+K162/1000 -> 0.013 | BR162: -0.75 | BS162: =BR162 -> -0.75
A163: United States of America | C163: Boulder | D163: 97 | E163: CNCA | K163: 1.9 | L163: 2012 | N163: 1.9525 | BD163: =BH163*(1+BI163) -> 0.00038 | BE163: =BH163*(1+BJ163) -> 0.00038 | BF163: 2005 | BH163: =+K163/1000 -> 0.0019 | BI163: -0.8 | BJ163: =BI163 -> -0.8
A164: United States of America | C164: Charleston | D164: 130 | E164: Carbonn | H164: 1.88 | I164: 2002 | K164: 2.17 | AL164: =AP164*(1+AQ164) -> 0.0003689 | AM164: =AP164*(1+AR164) -> 0.0003689 | AN164: 2002 | AP164: =K164/1000 -> 0.00217 | AQ164: -0.83 | AR164: =AQ164 -> -0.83
A165: United States of America | C165: Charlotte | D165: 739 | E165: Compact of Mayors | I165: 2006 | K165: 10.446 | BM165: 0 | BN165: 0 | BO165: 2006 | BQ165: =K165/1000 -> 0.010446 | BR165: -1 | BS165: -1 | BV165: http://charmeck.org/p2c/2lead/documents/final%20charlotte%20community%20ghg%20emissions%20inventory%20rpt.pdf
A166: United States of America | C166: Chicago | D166: 2720 | E166: C40, CDP: 2005, 2010 | H166: 32.3 | K166: =N166/0.92 -> 36.4625837 | N166: 33.545577 | T166: =X166*(1+Y166) -> 0.024225 | U166: =X166*(1+Z166) -> 0.024225 | V166: 1990 | X166: =+H166/1000 -> 0.0323 | Y166: -0.25 | Z166: =Y166 -> -0.25 | BM166: =BQ166*(1+BS166) -> 0.00646 | BN166: =BQ166*(1+BR166) -> 0.00646 | BO166: 1990 | BQ166: =+H166/1000 -> 0.0323 | BR166: -0.8 | BS166: =BR166 -> -0.8
A167: United States of America | C167: Cincinnati | D167: 298 | E167: Carbonn | I167: 2006 | K167: 8.5 | AL167: =AP167*(1+AQ167) -> 0.0051 | AM167: =AP167*(1+AR167) -> 0.0051 | AN167: 2006 | AP167: =+K167/1000 -> 0.0085 | AQ167: -0.4 | AR167: =AQ167 -> -0.4 | BM167: =BQ167*(1+BS167) -> 0.00136 | BN167: =BQ167*(1+BR167) -> 0.00136 | BO167: 2006 | BQ167: =+K167/1000 -> 0.0085 | BR167: -0.84 | BS167: =BR167 -> -0.84
A168: United States of America | C168: Cleveland | D168: 390 | E168: Carbonn, City report: 2010 | N168: 12.791996 | T168: =X168*(1+Y168) -> 0.01074527664 | U168: =X168*(1+Z168) -> 0.01074527664 | V168: 2010 | X168: =+N168/1000 -> 0.012791996 | Y168: -0.16 | Z168: =Y168 -> -0.16 | AL168: =AP168*(1+AQ168) -> 0.0076751976 | AM168: =AP168*(1+AR168) -> 0.0076751976 | AN168: 2010 | AP168: =N168/1000 -> 0.012791996 | AQ168: -0.4 | AR168: =AQ168 -> -0.4 | BM168: 0.0025583992 | BN168: 0.0025583992 | BO168: 2010 | BQ168: =+N168/1000 -> 0.012791996 | BR168: -0.8 | BS168: =BR168 -> -0.8 | BV168: http://carbonn.org/uploads/tx_carbonndata/Cleveland_Climate_Action_Plan_Final2013_01.pdf
A169: United States of America | C169: El Cerrito | D169: 24 | E169: Carbonn | K169: 0.133 | AU169: =AY169*(1+AZ169) -> 9.31e-05 | AV169: =AY169*(1+BA169) -> 9.31e-05 | AW169: 2005 | AY169: =K169/1000 -> 0.000133 | AZ169: -0.3 | BA169: =AZ169 -> -0.3
A170: United States of America | C170: Freemont | D170: 220 | E170: Carbonn | K170: 1.863 | T170: =X170*(1+Y170) -> 0.00139725 | U170: =X170*(1+Z170) -> 0.00139725 | V170: 2005 | X170: =K170/1000 -> 0.001863 | Y170: -0.25 | Z170: =Y170 -> -0.25
A171: United States of America | C171: Hayward | D171: 150 | E171: Carbonn | K171: 1.18 | T171: 0.0010384 | U171: 0.0010384 | V171: 2005 | X171: =K171/1000 -> 0.00118 | Y171: -0.12 | Z171: -0.12 | BM171: =BQ171*(1+BS171) -> 0.0002124 | BN171: =BQ171*(1+BR171) -> 0.0002124 | BO171: 2005 | BQ171: =+K171/1000 -> 0.00118 | BR171: -0.82 | BS171: =BR171 -> -0.82
A172: United States of America | C172: Knoxville | D172: 183 | E172: Carbonn | K172: 4.215 | T172: 0.003372 | U172: 0.003372 | V172: 2005 | X172: =K172/1000 -> 0.004215 | Y172: -0.2 | Z172: -0.2
A173: United States of America | C173: Miami | D173: 418 | E173: Carbonn, CDP: 2006 | K173: 4.76236427 | T173: 0.003809891416 | U173: 0.003809891416 | V173: 2006 | X173: =K173/1000 -> 0.00476236427 | Y173: -0.2 | Z173: -0.2
A174: United States of America | C174: Nashville | D174: 659 | E174: Carbonn | K174: 22.181 | T174: 0.0177448 | U174: 0.0177448 | V174: 2005 | X174: =K174/1000 -> 0.022181 | Y174: -0.2 | Z174: -0.2
A175: United States of America | C175: Philadelphia | D175: 1550 | E175: C40, CDP | H175: 19.4 | N175: 19.780964 | T175: 0.01552 | U175: 0.01552 | V175: 1990 | X175: =+H175/1000 -> 0.0194 | Y175: -0.2 | Z175: -0.2
A176: United States of America | C176: Santa Fe | D176: 68 | E176: Local reference | L176: 2011 | N176: 1.9 | BI176: -1 | BJ176: =BI176 -> -1 | BV176: www.santafenm.gov/media/files/Sustainable_SF_Commission/Sustainable_SF_Commission_Benchmarks_Final.pdf
A177: United States of America | C177: Somerville | D177: 78.901 | E177: Local reference | L177: 2014 | N177: 0.609605 | O177: 2014 | Q177: 0.609605 | BI177: -1 | BJ177: =BI177 -> -1 | BV177: http://www.somervillema.gov/sustainaville/resources/FINAL-Somerville-GHG-Inventory-Report_signed_Jan2016.pdf
A178: United States of America | C178: St. Louis | D178: 319 | E178: CDP | K178: 7.95 | N178: 7.506359 | T178: 0.0059625 | U178: 0.0059625 | V178: 2005 | X178: =K178/1000 -> 0.00795 | Y178: -0.25 | Z178: -0.25
A179: United States of America | C179: Tacoma | D179: 205 | H179: 1.75 | K179: 2 | L179: 2012 | N179: 1.5 | T179: 0.00105 | U179: 0.00105 | V179: 2005 | X179: =H179/1000 -> 0.00175 | Y179: -0.4 | Z179: -0.4 | BM179: =BQ179*(1+BS179) -> 0.00035 | BN179: =BQ179*(1+BR179) -> 0.00035 | BO179: 1990 | BQ179: =+H179/1000 -> 0.00175 | BR179: -0.8 | BS179: =BR179 -> -0.8 | BV179: https://www.cityoftacoma.org/cms/One.aspx?portalId=169&pageId=9659
A180: United States of America | C180: Urbana | D180: 41 | E180: Carbonn | I180: 2007 | K180: 0.5487 | BM180: =BQ180*(1+BS180) -> 0.00010974 | BN180: =BQ180*(1+BR180) -> 0.00010974 | BO180: 2006 | BQ180: =+K180/1000 -> 0.0005487 | BR180: -0.8 | BS180: =BR180 -> -0.8 | BV180: http://urbanaillinois.us/sites/default/files/attachments/city-urbana-cap-phase-i-final.pdf
A181: United States of America | C181: Washington DC | D181: 602 | E181: CNCA, C40 | I181: 2006 | K181: 10.211 | AL181: =AP181*(1+AQ181) -> 0.0051055 | AM181: =AP181*(1+AR181) -> 0.0051055 | AN181: 2006 | AP181: =K181/1000 -> 0.010211 | AQ181: -0.5 | AR181: =AQ181 -> -0.5 | BM181: =BQ181*(1+BS181) -> 0.0020422 | BN181: =BQ181*(1+BR181) -> 0.0020422 | BO181: 2006 | BQ181: =+K181/1000 -> 0.010211 | BR181: -0.8 | BS181: =BR181 -> -0.8
A182: Uruguay | B182: Whole country | D182: 3371.982 | E182: UNFCCC, GHG data: 1990, 2004; BUR1: 2010 | G182: 29.2 | H182: 32.1 | I182: 2004 | J182: 25.9 | K182: 36.3 | M182: 31.20729 | N182: 34.95589 | AL182: =27.43/1000 -> 0.02743 | AM182: =AL182+13.2/1000 -> 0.04063 | BU182: 50% renewable energy mix and 90% electricity generation from renewables in 2015. | BV182: Energy Poilicy of Uruguay
A183: Venezuela | B183: Whole country | D183: 29043.283 | E183: UNFCCC, GHG data | F183: 1999 | G183: 177.9 | H183: 192.2 | M183: 200 | R183: 270 | T183: 0.25 | U183: =T183 -> 0.25 | AJ183: 0.34 | AL183: =AO183*(1+AQ183) -> 0.34 | AM183: =AO183*(1+AR183) -> 0.272 | AN183: 2030 | AO183: =+AJ183 -> 0.34 | AQ183: 0 | AR183: -0.2
A184: Asia & Pacific | G184: =SUM(G185:G287) -> 8222.661588 | H184: =SUM(H185:H287) -> 8996.706787 | J184: =SUM(J185:J287) -> 14086.73752 | K184: =SUM(K185:K287) -> 14490.06214 | M184: =SUM(M185:M287) -> 18652.8518 | N184: 17733.49029 | R184: 24909.15985 | S184: 22357.01312 | T184: 22.78979343 | U184: 22.10723213 | AA184: =SUM(AA185:AA287) -> 0.127031875 | AB184: =SUM(AB185:AB287) -> 0.925224185 | AC184: =SUM(AC185:AC287) -> 0.697462075 | AD184: =SUM(AD185:AD287) -> 0.6039005531 | AJ184: =SUM(AJ185:AJ287) -> 10.1383811 | AK184: =SUM(AK185:AK287) -> 1.047047665 | AL184: =SUM(AL185:AL287) -> 29.28101161 | AM184: =SUM(AM185:AM287) -> 24.94365745 | AS184: =SUM(AS185:AS287) -> 0 | AT184: =SUM(AT185:AT287) -> 0 | AU184: =SUM(AU185:AU287) -> 0 | AV184: =SUM(AV185:AV287) -> 0 | BB184: =SUM(BB185:BB287) -> 0 | BC184: =SUM(BC185:BC287) -> 0 | BD184: =SUM(BD185:BD287) -> 0.00606 | BE184: =SUM(BE185:BE287) -> 0.00606 | BK184: =SUM(BK185:BK287) -> 0 | BL184: =SUM(BL185:BL287) -> 0 | BM184: =SUM(BM185:BM287) -> 0.2138692611 | BN184: =SUM(BN185:BN287) -> 0.2138692611
A185: Afghanistan | B185: Whole country | D185: 28397.812 | E185: EDgar4.2: 1990; NC2: 2005 | G185: 12.52802 | H185: =G185 -> 12.52802 | J185: 28.75849 | K185: =19.32742 -> 19.32742 | R185: 46.4822 | S185: 35.53302 | AA185: =53.18064/1000 -> 0.05318064 | AB185: =41.67295/1000 -> 0.04167295 | AD185: =40.3/1000 -> 0.0403 | AJ185: =61.93954/1000 -> 0.06193954 | AK185: =48.93954/1000 -> 0.04893954 | AL185: =AP185*(1+AQ185) -> 0.04893954 | AM185: =AP185*(1+AR185) -> 0.04228376256 | AN185: 2030 | AP185: =AK185 -> 0.04893954 | AQ185: 0 | AR185: -0.136
A186: Australia | B186: Whole country | D186: 22404.488 | E186: BR1, 2020 Pledge. | G186: 524 | H186: 417.7 | J186: 552.33 | K186: 529.32 | M186: =587.8 -> 587.8 | N186: 548.7 | R186: 690 | S186: 648 | T186: =W186*(1+Y186) -> 0.5301 | U186: =W186*(1+Z186) -> 0.4185 | V186: 2000 | W186: =558/1000 -> 0.558 | Y186: -0.05 | Z186: -0.25 | AL186: =AO186*(1+AQ186) -> 0.4087242 | AM186: =AO186*(1+AR186) -> 0.3976776 | AN186: 2005 | AO186: =+J186/1000 -> 0.55233 | AQ186: -0.26 | AR186: -0.28 | BT186: Australia's emission projections 2010 | BV186: FCCC/KP/AWG/2009/10/Add.4/Rev.2 19 Oct. 2009
A187: Australia | B187: South Australia | D187: 1689 | E187: CDP States and Regions responses 2015 | H187: 33.523 | L187: 2011 | N187: 31.69 | BM187: =BQ187*(1+BR187) -> 0.0134092 | BN187: =BQ187*(1+BS187) -> 0.0134092 | BO187: 1990 | BQ187: =+H187/1000 -> 0.033523 | BR187: -0.6 | BS187: =BR187 -> -0.6
A188: Australia | B188: Australian Capital Territory | C188: Contains Canberra | D188: 386 | E188: CDP States and Regions responses 2015 | H188: 3.19 | L188: 2013 | N188: 3.99 | O188: 2013 | Q188: 3.99 | T188: =X188*(1+Y188) -> 0.001914 | U188: =X188*(1+Z188) -> 0.001914 | X188: =+H188/1000 -> 0.00319 | Y188: -0.4 | Z188: =Y188 -> -0.4 | BM188: =BQ188*(1+BR188) -> 0.000638 | BN188: =BQ188*(1+BS188) -> 0.000638 | BO188: 1990 | BQ188: =+H188/1000 -> 0.00319 | BR188: -0.8 | BS188: =BR188 -> -0.8
A189: Australia | B189: Tasmania | E189: The Climate group | H189: 11.5 | L189: 2009 | N189: 9.3 | AL189: =AP189*(1+AQ189) -> 0.0046 | AM189: =AP189*(1+AR189) -> 0.0046 | AP189: =+H189/1000 -> 0.0115 | AQ189: -0.6 | AR189: =AQ189 -> -0.6 | BV189: http://www.dpac.tas.gov.au/__data/assets/pdf_file/0014/117410/Wedges_Fact_Sheet.pdf
A190: Australia | C190: Adelaide | D190: 1300 | L190: 2013 | N190: 0.955 | O190: 2013 | Q190: 0.955 | AL190: 0 | AM190: 0 | AQ190: -1 | AR190: =+AQ190 -> -1 | BV190: www.theguardian.com/australia-news/2015/sep/09/adelaide-joins-race-to-become-worlds-first-carbon-neutral-city
A191: Australia | C191: Auckland | D191: 1570 | E191: C40 | H191: 10.1 | BD191: =BH191*(1+BI191) -> 0.00606 | BE191: =BH191*(1+BJ191) -> 0.00606 | BF191: 1990 | BH191: =+H191/1000 -> 0.0101 | BI191: -0.4 | BJ191: =BI191 -> -0.4
A192: Australia | C192: Melbourne | D192: 4200 | E192: CNCA, C40 | H192: 4.942 | I192: 2006 | K192: 5.1 | T192: 0 | U192: 0 | Y192: -1 | Z192: =Y192 -> -1
A193: Australia | C193: Sydney | D193: 4392 | E193: CNCA, C40, CDP: 2005 | I193: 2005 | K193: 5.458899 | AL193: =AP193*(1+AQ193) -> 0.0016376697 | AM193: =AP193*(1+AR193) -> 0.0016376697 | AN193: 2006 | AP193: =+K193/1000 -> 0.005458899 | AQ193: -0.7 | AR193: =AQ193 -> -0.7
A194: Australia | C194: Wellington | D194: 398 | E194: CDP | I194: 2001 | K194: 1.311 | T194: =X194*(1+Y194) -> 0.0009177 | U194: =X194*(1+Z194) -> 0.0009177 | X194: =+K194/1000 -> 0.001311 | Y194: -0.3 | Z194: =Y194 -> -0.3
A195: Bangladesh | B195: Whole country | D195: 151125.475 | E195: UNFCCC, GHG data: 1994; NC2: 2005 | F195: 1994 | G195: 53.8 | H195: 45.9 | J195: =59.06785+1.8793*21+0.03885*310 -> 110.57665 | K195: =J195-18.20551 -> 92.37114 | L195: 2011 | N195: 64 | AJ195: =AP195/0.69 -> 0.3391304348 | AL195: =AP195*(1+AQ195)+AJ195-AP195 -> 0.3274304348 | AM195: =AP195*(1+AR195)+AJ195-AP195 -> 0.3040304348 | AN195: 2030 | AP195: 0.234 | AQ195: -0.05 | AR195: -0.15
A196: Bhutan | B196: Whole country | D196: 716.939 | E196: UNFCCC, GHG data: 1994; NC2: 2000 | F196: 1994 | G196: 2.3 | H196: 1.3 | I196: 2000 | J196: -4.75004 | K196: 1.559566 | AC196: 0 | AD196: 0 | AL196: 0 | AM196: 0 | AQ196: -1 | AR196: -1
A197: Brunei | B197: Whole country | D197: 400.569 | E197: Edgar4.2: 1990, 2005 | G197: 18.36677 | H197: =G197 -> 18.36677 | J197: 10.96896 | K197: =J197 -> 10.96896 | M197: 7.4 | N197: 10.02 | AL197: Sectoral goals
A198: Cambodia | B198: Whole country | D198: 14364.931 | E198: NC1: 1994, NC2: 2000 | F198: 1994 | G198: -5.14179 | H198: 12.8 | I198: 2000 | J198: =K198-48.1656 -> -0.45654 | K198: 47.70906 | AJ198: =AK198-7.897/1000 -> 0.003703 | AK198: =11.6/1000 -> 0.0116 | AL198: =AO198*(1+AQ198) -> 0.008468 | AM198: =AO198*(1+AR198) -> 0.008468 | AN198: 2030 | AO198: =11.6/1000 -> 0.0116 | AQ198: -0.27 | AR198: -0.27
A199: China | B199: Whole country | D199: 1359821.465 | E199: UNFCCC GHG Data: 1994; NC2: 2005; GAP3 averages: 2010 | F199: 1994 | G199: 3650.138 | H199: 4057.617 | J199: 7046.29 | K199: 7467.09 | M199: 10101 | N199: 10268 | R199: 14280 | S199: 13838 | T199: =X199*(1+Y199) -> 13.56124 | U199: =X199*(1+Z199) -> 13.56124 | V199: 2020 | X199: =S199/1000 -> 13.838 | Y199: -0.02 | Z199: -0.02 | AL199: 16.9 | AM199: 13.6 | AN199: 2005 | AP199: =+K199/1000 -> 7.46709 | AQ199: =(AL199-AP199)/AL199 -> 0.558160355 | AR199: =+(AM199-AP199)/AM199 -> 0.4509492647 | BT199: GAP5 avearage | BU199: GHG peak in 2030 and 20% Renewable+nuclear share in 2030 | BV199: GOV.cn. Chinese Government's Official Web Portal. 'China announces targets on carbon emission cuts.' Thursday, November 26, 2009 http://www.gov.cn/english/2009-11/26/content_1474008.htm
A200: Cook Islands | B200: Whole country | D200: 20.284 | E200: NC2: 1994, 2006 | F200: 1994 | G200: -0.07 | H200: 0.04315 | I200: 2006 | J200: =K200-0.16697 -> -0.097396 | K200: 0.069574 | AL200: Renewable electricity | AN200: 2006 | BU200: 50% renewable electricity in 2015, and 100% in 2020.
... 1715 more rows

Sheet Analysis
A1: Country | B1: 2020 | C1: 2030 | D1: 2050 | E1: 2020 | G1: 2030 | I1: 2050
B2: Conditional | E2: Absolute | F2: Extra | G2: Absolute | H2: Extra | I2: Absolute | J2: Extra
B3: GHG reduction % | E3: GHG reduction GtCO2e | G3: GHG reduction GtCO2e | I3: GHG reduction GtCO2e
A4: Algeria | B4: 0 | C4: 0.07 | D4: 0 | E4: 0.553756 | F4: 0.553756 | G4: 0 | H4: 0 | I4: 0 | J4: 0
A5: Angola | B5: 0 | C5: 0.35 | D5: 0 | E5: 0 | F5: 0 | G5: 0 | H5: 0 | I5: 0 | J5: 0
A6: Benin | B6: 0 | C6: 0.0475304458 | D6: 0 | E6: 0 | F6: 0 | G6: 0 | H6: 0 | I6: 0 | J6: 0
A7: Botswana | B7: 0 | C7: 0 | D7: 0 | E7: 0 | F7: 0 | G7: 0 | H7: 0 | I7: 0 | J7: 0
A8: Burkina Faso | B8: -0.05575590363 | C8: 0.065988861 | D8: 0 | E8: 0 | F8: 0 | G8: 0 | H8: 0 | I8: 0 | J8: 0
A9: Burundi | B9: 0.01 | C9: 0.03 | D9: 0 | E9: 0 | F9: 0 | G9: 0 | H9: 0 | I9: 0 | J9: 0
A10: Cameroon | B10: 0 | C10: 0.3939393939 | D10: 0 | E10: 0 | F10: 0 | G10: 0 | H10: 0 | I10: 0 | J10: 0
A11: Cape Verde | B11: 0 | C11: 0 | D11: 0 | E11: 0 | F11: 0 | G11: 0 | H11: 0 | I11: 0 | J11: 0
A12: Central African Republic | B12: 0 | C12: 0 | D12: 0 | E12: 0 | F12: 0 | G12: 0 | H12: 0 | I12: 0 | J12: 0
A13: Chad | B13: 0 | C13: 0.182 | D13: 0 | E13: 0 | F13: 0 | G13: 0 | H13: 0 | I13: 0 | J13: 0
A14: Comoros | B14: 0.4656232532 | C14: 0.8443892181 | D14: 0 | E14: 0 | F14: 0 | G14: 0 | H14: 0 | I14: 0 | J14: 0
A15: Congo | B15: 0 | C15: 0.51 | D15: 0 | E15: 0 | F15: 0 | G15: 0 | H15: 0 | I15: 0 | J15: 0
A16: Congo DR | B16: 0 | C16: 0.17 | D16: 0 | E16: 0 | F16: 0 | G16: 0 | H16: 0 | I16: 0 | J16: 0
A17: Côte d'Ivoire | B17: 0 | C17: 0.28 | D17: 0 | E17: 0 | F17: 0 | G17: 0 | H17: 0 | I17: 0 | J17: 0
A18: Djibouti | B18: 0.2 | C18: 0.4 | D18: 0 | E18: 0 | F18: 0 | G18: 0 | H18: 0 | I18: 0 | J18: 0
A19: Egypt | B19: 0 | C19: 0 | D19: 0 | E19: 0 | F19: 0 | G19: 0 | H19: 0 | I19: 0 | J19: 0
A20: Equatorial Guinea | B20: 0 | C20: 0.2 | D20: 0.5 | E20: 0 | F20: 0 | G20: 0 | H20: 0 | I20: 0 | J20: 0
A21: Eritrea | B21: 0.231 | C21: 0.392 | D21: 0 | E21: 0 | F21: 0 | G21: 0 | H21: 0 | I21: 0 | J21: 0
A22: Ethiopia | B22: 0 | C22: 0.6375 | D22: 0 | E22: 0.0036675 | F22: 0.0036675 | G22: 0 | H22: 0 | I22: 0 | J22: 0
A23: Gabon | B23: 0 | C23: 0 | D23: 0 | E23: 0 | F23: 0 | G23: 0 | H23: 0 | I23: 0 | J23: 0
A24: Gambia | B24: 0 | C24: 0.454 | D24: 0 | E24: 0 | F24: 0 | G24: 0 | H24: 0 | I24: 0 | J24: 0
A25: Ghana | B25: 0 | C25: 0.15 | D25: 0 | E25: 0 | F25: 0 | G25: 0 | H25: 0 | I25: 0 | J25: 0
A26: Guinea | B26: 0 | C26: 0.13 | D26: 0 | E26: 0 | F26: 0 | G26: 0 | H26: 0 | I26: 0 | J26: 0
A27: Guinea-Bissau | B27: 0 | C27: 0 | D27: 0 | E27: 0 | F27: 0 | G27: 0 | H27: 0 | I27: 0 | J27: 0
A28: Kenya | B28: 0 | C28: 0.3 | D28: 0 | E28: 0 | F28: 0 | G28: 0.036 | H28: 0 | I28: 0 | J28: 0
A29: Lesotho | B29: 0 | C29: 0 | D29: 0 | E29: 0 | F29: 0 | G29: 0 | H29: 0 | I29: 0 | J29: 0
A30: Liberia | B30: 0 | C30: 0.15 | D30: 0 | E30: 0 | F30: 0 | G30: 0 | H30: 0 | I30: 0 | J30: 0
A31: Libya | B31: 0 | C31: 0 | D31: 0 | E31: 0 | F31: 0 | G31: 0 | H31: 0 | I31: 0 | J31: 0
A32: Madagascar | B32: 0 | C32: 0.14 | D32: 0 | E32: 0 | F32: 0 | G32: 0 | H32: 0 | I32: 0 | J32: 0
A33: Malawi | B33: 0 | C33: 0 | D33: 0 | E33: 0 | F33: 0 | G33: 0 | H33: 0 | I33: 0 | J33: 0
A34: Mali | B34: 0 | C34: 0 | D34: 0 | E34: 0 | F34: 0 | G34: 0 | H34: 0 | I34: 0 | J34: 0
A35: Mauritania | B35: 0 | C35: 0.02676 | D35: 0 | E35: 0 | F35: 0 | G35: 0 | H35: 0 | I35: 0 | J35: 0
A36: Mauritius | B36: 0 | C36: 0.3 | D36: 0 | E36: 0 | F36: 0 | G36: 0 | H36: 0 | I36: 0 | J36: 0
A37: Morocco | B37: 0.0737704918 | C37: 0.134502924 | D37: 0 | E37: 0.0001750724 | F37: 0.0001104965148 | G37: 0 | H37: 0 | I37: 0 | J37: 0
A38: Mozambique | B38: 0 | C38: 0 | D38: 0 | E38: 0 | F38: 0 | G38: 0 | H38: 0 | I38: 0 | J38: 0
A39: Namibia | B39: 0 | C39: 0.89 | D39: 0 | E39: 0 | F39: 0 | G39: 0 | H39: 0 | I39: 0 | J39: 0
A40: Niger | B40: 0.025 | C40: 0.035 | D40: 0 | E40: 0 | F40: 0 | G40: 0 | H40: 0 | I40: 0 | J40: 0
A41: Nigeria | B41: 0 | C41: 0.2 | D41: 0 | E41: 0 | F41: 0 | G41: 0 | H41: 0 | I41: 0 | J41: 0
A42: Rwanda | B42: 0 | C42: 0 | D42: 0 | E42: 0 | F42: 0 | G42: 0 | H42: 0 | I42: 0 | J42: 0
A43: Sao Tome and Principe | B43: 0 | C43: 0.24 | D43: 0 | E43: 0 | F43: 0 | G43: 0 | H43: 0 | I43: 0 | J43: 0
A44: Senegal | B44: 0.03 | C44: 0.05 | D44: 0 | E44: 0 | F44: 0 | G44: 0 | H44: 0 | I44: 0 | J44: 0
A45: Seychelles | B45: 0 | C45: 0 | D45: 0 | E45: 0 | F45: 0 | G45: 0 | H45: 0 | I45: 0 | J45: 0
A46: Sierra Leone | B46: 0 | C46: 0 | D46: 0 | E46: 0 | F46: 0 | G46: 0 | H46: 0 | I46: 0 | J46: 0
A47: Somalia | B47: 0 | C47: 0 | D47: 0 | E47: 0 | F47: 0 | G47: 0 | H47: 0 | I47: 0 | J47: 0
A48: South Africa | B48: 0 | C48: 0 | D48: 0 | E48: 0.00012 | F48: 0.00012 | G48: 0 | H48: 0 | I48: 0 | J48: 0
A49: Sudan | B49: 0 | C49: 0 | D49: 0 | E49: 0 | F49: 0 | G49: 0 | H49: 0 | I49: 0 | J49: 0
A50: Swaziland | B50: 0 | C50: 0 | D50: 0 | E50: 0 | F50: 0 | G50: 0 | H50: 0 | I50: 0 | J50: 0
A51: Tanzania | B51: 0 | C51: 0.1 | D51: 0 | E51: 0 | F51: 0 | G51: 0 | H51: 0 | I51: 0 | J51: 0
A52: Togo | B52: 0 | C52: 0.1114 | D52: 0 | E52: 0 | F52: 0 | G52: 0 | H52: 0 | I52: 0 | J52: 0
A53: Tunisia | B53: 0.06030150754 | C53: 0.08529411765 | D53: 0 | E53: 0 | F53: 0 | G53: 0 | H53: 0 | I53: 0 | J53: 0
A54: Uganda | B54: 0 | C54: 0.22 | D54: 0 | E54: 0 | F54: 0 | G54: 0 | H54: 0 | I54: 0 | J54: 0
A55: Western Sahara | B55: 0 | C55: 0 | D55: 0 | E55: 0 | F55: 0 | G55: 0 | H55: 0 | I55: 0 | J55: 0
A56: Zambia | B56: 0 | C56: 0.25 | D56: 0 | E56: 0 | F56: 0 | G56: 0 | H56: 0 | I56: 0 | J56: 0
A57: Zimbabwe | B57: 0 | C57: 0 | D57: 0 | E57: 0 | F57: 0 | G57: 0 | H57: 0 | I57: 0 | J57: 0
A58: Antigua and Barbuda | B58: 0.25 | C58: 0 | D58: 0 | E58: 0 | F58: 0 | G58: 0 | H58: 0 | I58: 0 | J58: 0
A59: Argentina | B59: 0 | C59: 0.15 | D59: 0 | E59: 0.0011000721 | F59: 0.0011000721 | G59: 0.0033002163 | H59: 0.00165010815 | I59: 0 | J59: 0
A60: Bahamas | B60: 0 | C60: 0 | D60: 0 | E60: 0 | F60: 0 | G60: 0 | H60: 0 | I60: 0 | J60: 0
A61: Barbados | B61: 0 | C61: 0.23 | D61: 0 | E61: 0 | F61: 0 | G61: 0 | H61: 0 | I61: 0 | J61: 0
A62: Belize | B62: 0 | C62: 0 | D62: 0 | E62: 0 | F62: 0 | G62: 0 | H62: 0 | I62: 0 | J62: 0
A63: Brazil | B63: 0.361 | C63: 0.43 | D63: 0 | E63: 0.02327308438 | F63: 0.00153296146 | G63: 0 | H63: 0 | I63: 0 | J63: 0
A64: Canada | B64: 0.17 | C64: 0.3 | D64: 0 | E64: 0.1290751968 | F64: 0.01538820609 | G64: 0.1041634868 | H64: 0.01940221619 | I64: 0.5038609789 | J64: 0.4720484957
A65: Chile | B65: 0.2 | C65: 0 | D65: 0 | E65: 0 | F65: 0 | G65: 0 | H65: 0 | I65: 0 | J65: 0
A66: Colombia | B66: 0.1316003249 | C66: 0.2 | D66: 0 | E66: 0.0001836 | F66: 6.279090171e-05 | G66: 0 | H66: 0 | I66: 0.01009298 | J66: 0.01009298
A67: Costa Rica | B67: 0 | C67: 0 | D67: 0 | E67: 0 | F67: 0 | G67: 0 | H67: 0 | I67: 0 | J67: 0
A68: Cuba | B68: 0 | C68: 0 | D68: 0 | E68: 0 | F68: 0 | G68: 0 | H68: 0 | I68: 0 | J68: 0
A69: Dominica | B69: 0.179 | C69: 0.447 | D69: 0 | E69: 0 | F69: 0 | G69: 0 | H69: 0 | I69: 0 | J69: 0
A70: Dominican Republic | B70: 0 | C70: 0.25 | D70: 0 | E70: 0 | F70: 0 | G70: 0 | H70: 0 | I70: 0 | J70: 0
A71: Ecuador | B71: 0 | C71: 0 | D71: 0 | E71: 0 | F71: 0 | G71: 0 | H71: 0 | I71: 0 | J71: 0
A72: El Salvador | B72: 0 | C72: 0 | D72: 0 | E72: 0 | F72: 0 | G72: 0 | H72: 0 | I72: 0 | J72: 0
A73: Grenada | B73: 0.2330587445 | C73: 0.4 | D73: 0 | E73: 0 | F73: 0 | G73: 0 | H73: 0 | I73: 0 | J73: 0
A74: Guatemala | B74: 0.04387096774 | C74: 0.112 | D74: 0 | E74: 0 | F74: 0 | G74: 0 | H74: 0 | I74: 0 | J74: 0
A75: Guyana | B75: 0 | C75: 0 | D75: 0 | E75: 0 | F75: 0 | G75: 0 | H75: 0 | I75: 0 | J75: 0
A76: Haiti | B76: 0 | C76: 0 | D76: 0 | E76: 0 | F76: 0 | G76: 0 | H76: 0 | I76: 0 | J76: 0
A77: Honduras | B77: 0 | C77: 0 | D77: 0 | E77: 0 | F77: 0 | G77: 0 | H77: 0 | I77: 0 | J77: 0
A78: Jamaica | B78: 0 | C78: 0.078 | D78: 0 | E78: 0 | F78: 0 | G78: 0 | H78: 0 | I78: 0 | J78: 0
A79: Mexico | B79: 0 | C79: 0.22 | D79: 0.5 | E79: 6.574e-05 | F79: 6.574e-05 | G79: 0.0161371 | H79: 0.00336008 | I79: 0.0234765 | J79: 0
A80: Nicaragua | B80: 0 | C80: 0 | D80: 0 | E80: 0 | F80: 0 | G80: 0 | H80: 0 | I80: 0 | J80: 0
A81: Panama | B81: 0 | C81: 0 | D81: 0 | E81: 0 | F81: 0 | G81: 0 | H81: 0 | I81: 0 | J81: 0
A82: Paraguay | B82: 0 | C82: 0.1 | D82: 0 | E82: 0 | F82: 0 | G82: 0 | H82: 0 | I82: 0 | J82: 0
A83: Peru | B83: 0 | C83: 0.2 | D83: 0 | E83: 0 | F83: 0 | G83: 0 | H83: 0 | I83: 0 | J83: 0
A84: Saint Kitts and Nevis | B84: 0 | C84: 0 | D84: 0 | E84: 0 | F84: 0 | G84: 0 | H84: 0 | I84: 0 | J84: 0
A85: Saint Lucia | B85: 0 | C85: 0.23 | D85: 0 | E85: 0 | F85: 0 | G85: 0 | H85: 0 | I85: 0 | J85: 0
A86: Saint Vincent and the Grenadines | B86: 0 | C86: 0 | D86: 0 | E86: 0 | F86: 0 | G86: 0 | H86: 0 | I86: 0 | J86: 0
A87: Suriname | B87: 0 | C87: 0 | D87: 0 | E87: 0 | F87: 0 | G87: 0 | H87: 0 | I87: 0 | J87: 0
A88: Trinidad and Tobago | B88: 0 | C88: 0.002386634845 | D88: 0 | E88: 0 | F88: 0 | G88: 0 | H88: 0 | I88: 0 | J88: 0
A89: United States of America | B89: 0.17 | C89: 0.26 | D89: 0.8 | E89: 0.07093567 | F89: 0.01848733 | G89: 0.321376184 | H89: 0.117565104 | I89: 1.127305306 | J89: 0.0061822492
A90: Uruguay | B90: 0 | C90: 0 | D90: 0 | E90: 0 | F90: 0 | G90: 0 | H90: 0 | I90: 0 | J90: 0
A91: Venezuela | B91: 0 | C91: 0 | D91: 0 | E91: 0 | F91: 0 | G91: 0 | H91: 0 | I91: 0 | J91: 0
A92: Afghanistan | B92: 0 | C92: 0 | D92: 0 | E92: 0 | F92: 0 | G92: 0 | H92: 0 | I92: 0 | J92: 0
A93: Australia | B93: 0.05 | C93: 0.26 | D93: 0 | E93: 0.0016693 | F93: 0.00144425 | G93: 0.010435 | H93: 0.006132 | I93: 0.0226658 | J93: 0.0226658
A94: Bangladesh | B94: 0 | C94: 0.05 | D94: 0 | E94: 0 | F94: 0 | G94: 0 | H94: 0 | I94: 0 | J94: 0
A95: Bhutan | B95: 0 | C95: 1 | D95: 0 | E95: 0 | F95: 0 | G95: 0 | H95: 0 | I95: 0 | J95: 0
A96: Brunei | B96: 0 | C96: 0 | D96: 0 | E96: 0 | F96: 0 | G96: 0 | H96: 0 | I96: 0 | J96: 0
A97: Cambodia | B97: 0 | C97: 0.27 | D97: 0 | E97: 0 | F97: 0 | G97: 0 | H97: 0 | I97: 0 | J97: 0
A98: China | B98: 0.02 | C98: -0.558160355 | D98: 0 | E98: 0 | F98: 0 | G98: 0 | H98: 0 | I98: 0 | J98: 0
A99: Cook Islands | B99: 0 | C99: 0 | D99: 0 | E99: 0 | F99: 0 | G99: 0 | H99: 0 | I99: 0 | J99: 0
A100: Fiji | B100: 0 | C100: 0.1 | D100: 0 | E100: 0 | F100: 0 | G100: 0 | H100: 0 | I100: 0 | J100: 0
A101: Kiribati | B101: 0 | C101: 0.128 | D101: 0 | E101: 0 | F101: 0 | G101: 0 | H101: 0 | I101: 0 | J101: 0
A102: India | B102: 0.05 | C102: 0.04 | D102: 0 | E102: 0 | F102: 0 | G102: 0 | H102: 0 | I102: 0 | J102: 0
A103: Indonesia | B103: 0.26 | C103: 0.29 | D103: 0 | E103: 0 | F103: 0 | G103: 0.013104 | H103: 0.0004368 | I103: 0 | J103: 0
A104: Japan | B104: 0.038 | C104: 0.26 | D104: 0 | E104: 0.06665609 | F104: 0.056366488 | G104: 0.0487430828 | H104: 0.01992189104 | I104: 0.130747518 | J104: 0.130747518
A105: Lao PDR | B105: 0 | C105: 0 | D105: 0 | E105: 0 | F105: 0 | G105: 0 | H105: 0 | I105: 0 | J105: 0
A106: Malaysia | B106: 0 | C106: 0.35 | D106: 0 | E106: 0 | F106: 0 | G106: 0 | H106: 0 | I106: 0 | J106: 0
A107: Maldives | B107: 0 | C107: 0.1 | D107: 1 | E107: 0 | F107: 0 | G107: 0 | H107: 0 | I107: 0 | J107: 0
A108: Marshall Islands | B108: 0.4 | C108: 0.45 | D108: 0 | E108: 0 | F108: 0 | G108: 0 | H108: 0 | I108: 0 | J108: 0
A109: Micronesia | B109: 0 | C109: 0 | D109: 0 | E109: 0 | F109: 0 | G109: 0 | H109: 0 | I109: 0 | J109: 0
A110: Mongolia | B110: 0 | C110: 0.14 | D110: 0 | E110: 0 | F110: 0 | G110: 0 | H110: 0 | I110: 0 | J110: 0
A111: Myanmar | B111: 0 | C111: 0 | D111: 0 | E111: 0 | F111: 0 | G111: 0 | H111: 0 | I111: 0 | J111: 0
A112: Nauru | B112: 0 | C112: 0 | D112: 0 | E112: 0 | F112: 0 | G112: 0 | H112: 0 | I112: 0 | J112: 0
A113: Nepal | B113: 0 | C113: 0 | D113: 0 | E113: 0 | F113: 0 | G113: 0 | H113: 0 | I113: 0 | J113: 0
A114: New Zealand | B114: 0.1 | C114: 0.3 | D114: 0 | E114: 0.001161753474 | F114: 0.0006464356495 | G114: 0 | H114: 0 | I114: 0.001048942598 | J114: 0.001048942598
A115: Niue | B115: 0 | C115: 0 | D115: 0 | E115: 0 | F115: 0 | G115: 0 | H115: 0 | I115: 0 | J115: 0
A116: North Korea | B116: 0 | C116: 0 | D116: 0 | E116: 0 | F116: 0 | G116: 0 | H116: 0 | I116: 0 | J116: 0
A117: Pakistan | B117: 0 | C117: 0 | D117: 0 | E117: 0 | F117: 0 | G117: 0 | H117: 0 | I117: 0 | J117: 0
A118: Palau | B118: 0 | C118: 0 | D118: 0 | E118: 0 | F118: 0 | G118: 0 | H118: 0 | I118: 0 | J118: 0
A119: Papua New Guinea | B119: 0.5 | C119: 0 | D119: 1 | E119: 0 | F119: 0 | G119: 0 | H119: 0 | I119: 0 | J119: 0
A120: Philippines | B120: 0 | C120: 0.7 | D120: 0 | E120: 0.0003699 | F120: 0.0003699 | G120: 0 | H120: 0 | I120: 0 | J120: 0
A121: Samoa | B121: 0 | C121: 0 | D121: 0 | E121: 0 | F121: 0 | G121: 0 | H121: 0 | I121: 0 | J121: 0
A122: Singapore | B122: 0.16 | C122: 0.129787234 | D122: 0 | E122: 0 | F122: 0 | G122: 0 | H122: 0 | I122: 0 | J122: 0
A123: Solomon Islands | B123: 0 | C123: 0.3 | D123: 0 | E123: 0 | F123: 0 | G123: 0 | H123: 0 | I123: 0 | J123: 0
A124: South Korea | B124: 0.3 | C124: 0.37 | D124: 0 | E124: 0.01674605 | F124: 0 | G124: 0.0189664 | H124: 0.00142248 | I124: 0 | J124: 0
A125: Sri Lanka | B125: 0 | C125: 0 | D125: 0 | E125: 0 | F125: 0 | G125: 0 | H125: 0 | I125: 0 | J125: 0
A126: Taiwan | B126: 0 | C126: 0.2 | D126: 0.5 | E126: 0.02133861 | F126: 0.02133861 | G126: 0.0036557 | H126: 0.00073114 | I126: 0.00959112 | J126: 0.00159852
A127: Thailand | B127: 0 | C127: 0.2 | D127: 0 | E127: 0 | F127: 0 | G127: 0 | H127: 0 | I127: 0 | J127: 0
A128: Timor-Leste | B128: 0 | C128: 0 | D128: 0 | E128: 0 | F128: 0 | G128: 0 | H128: 0 | I128: 0 | J128: 0
A129: Tonga | B129: 0 | C129: 0 | D129: 0 | E129: 0 | F129: 0 | G129: 0 | H129: 0 | I129: 0 | J129: 0
A130: Tuvalu | B130: 0 | C130: 0 | D130: 0 | E130: 0 | F130: 0 | G130: 0 | H130: 0 | I130: 0 | J130: 0
A131: Vanuatu | B131: 0 | C131: 0 | D131: 0 | E131: 0 | F131: 0 | G131: 0 | H131: 0 | I131: 0 | J131: 0
A132: Vietnam | B132: 0 | C132: 0.08 | D132: 0 | E132: 0 | F132: 0 | G132: 0 | H132: 0 | I132: 0 | J132: 0
A133: Austria | B133: 0.2 | C133: 0.4 | D133: 0 | E133: 0.00108981581 | F133: 0.00015366293 | G133: 0 | H133: 0 | I133: 0 | J133: 0
A134: Belgium | B134: 0.2 | C134: 0.4 | D134: 0.8 | E134: 0.0172935546 | F134: 0.00550534636 | G134: 0 | H134: 0 | I134: 0.0472382 | J134: 0.0007134
A135: Bulgaria | B135: 0.2 | C135: 0.4 | D135: 0 | E135: 0.00100904618 | F135: 0.00048646418 | G135: 0 | H135: 0 | I135: 0 | J135: 0
A136: Croatia | B136: 0.2 | C136: 0.4 | D136: 0 | E136: 0.00019201822 | F136: 8.189562e-05 | G136: 0 | H136: 0 | I136: 0 | J136: 0
A137: Cyprus | B137: 0.2 | C137: 0.4 | D137: 0 | E137: 0 | F137: 0 | G137: 0 | H137: 0 | I137: 0 | J137: 0
A138: Czech Republic | B138: 0.2 | C138: 0.4 | D138: 0 | E138: 0.00038515555 | F138: 7.841975e-05 | G138: 0 | H138: 0 | I138: 0 | J138: 0
A139: Denmark | B139: 0.2 | C139: 0.4 | D139: 0.8 | E139: 0.00599552443 | F139: 0.00268505463 | G139: 0.002 | H139: 0.0012 | I139: 0 | J139: 0
A140: Estonia | B140: 0.2 | C140: 0.4 | D140: 0.8 | E140: 6.73933e-06 | F140: 3.87153e-06 | G140: 0 | H140: 0 | I140: 0 | J140: 0
A141: Finland | B141: 0.2 | C141: 0.4 | D141: 0.8 | E141: 0.003299113 | F141: 0.0008150264 | G141: 0.004371333 | H141: 0.00198 | I141: 0 | J141: 0
A142: France | B142: 0.2 | C142: 0.4 | D142: 0.8 | E142: 0.08755870988 | F142: 0.01303249748 | G142: 0.01696763 | H142: 0.00021348 | I142: 0.11093235 | J142: 0.01875
A143: Germany | B143: 0.2 | C143: 0.4 | D143: 0.8 | E143: 0.279748805 | F143: 0.1149816539 | G143: 0 | H143: 0 | I143: 0.44030793 | J143: 0.00878445
A144: Greece | B144: 0.2 | C144: 0.4 | D144: 0.8 | E144: 0.0015857063 | F144: 0.0006449125 | G144: 0 | H144: 0 | I144: 0 | J144: 0
A145: Ireland | B145: 0.2 | C145: 0.4 | D145: 0 | E145: 0.0010108 | F145: 0 | G145: 0 | H145: 0 | I145: 0 | J145: 0
A146: Italy | B146: 0.2 | C146: 0.4 | D146: 0 | E146: 0.0420662877 | F146: 0.005932952043 | G146: 0.0357 | H146: 0.00195 | I146: 0.0873754 | J146: 0.0873754
A147: Latvia | B147: 0.2 | C147: 0.4 | D147: 0.8 | E147: 0.00229858655 | F147: 0.00145447995 | G147: 0 | H147: 0 | I147: 0 | J147: 0
A148: Lithuania | B148: 0.2 | C148: 0.4 | D148: 0.8 | E148: 0.00133651626 | F148: 0.00045695386 | G148: 0 | H148: 0 | I148: 0 | J148: 0
A149: Luxemburg | B149: 0.2 | C149: 0.4 | D149: 0.8 | E149: 5.9694e-06 | F149: 1.9898e-06 | G149: 0 | H149: 0 | I149: 0 | J149: 0
A150: Malta | B150: 0.2 | C150: 0.4 | D150: 0.8 | E150: 2.28617e-05 | F150: 9.6225e-06 | G150: 0 | H150: 0 | I150: 0 | J150: 0
A151: Netherlands | B151: 0.2 | C151: 0.4 | D151: 0.8 | E151: 0.0100639008 | F151: 0.0019219576 | G151: 0 | H151: 0 | I151: 0.028375 | J151: 0.005375
A152: Poland | B152: 0.2 | C152: 0.4 | D152: 0.8 | E152: 0.00284564931 | F152: 0.00013130871 | G152: 0 | H152: 0 | I152: 0 | J152: 0
A153: Portugal | B153: 0.2 | C153: 0.4 | D153: 0.8 | E153: 0.00747987982 | F153: 0.00273732822 | G153: 0 | H153: 0 | I153: 0.0009522 | J153: 0.0001058
A154: Romania | B154: 0.2 | C154: 0.4 | D154: 0 | E154: 0.0005276787 | F154: 0.0002162639 | G154: 0 | H154: 0 | I154: 0 | J154: 0
A155: Slovakia | B155: 0.2 | C155: 0.4 | D155: 0 | E155: 0 | F155: 0 | G155: 0 | H155: 0 | I155: 0 | J155: 0
A156: Slovenia | B156: 0.2 | C156: 0.4 | D156: 0 | E156: 7.11288e-06 | F156: 3.16128e-06 | G156: 0 | H156: 0 | I156: 0 | J156: 0
A157: Spain | B157: 0.2 | C157: 0.4 | D157: 0.8 | E157: 0.02097741508 | F157: 0.004858854715 | G157: 0.0102676 | H157: 0 | I157: 0.0205352 | J157: 0
A158: Sweden | B158: 0.2 | C158: 0.4 | D158: 0.8 | E158: 0.0088627818 | F158: 0.0046947215 | G158: 0.000840143 | H158: 0.000694943 | I158: 0.0003343 | J158: 6.686e-05
A159: UK | B159: 0.2 | C159: 0.4 | D159: 0.8 | E159: 0.0922269745 | F159: 0.0451059889 | G159: 0 | H159: 0 | I159: 0.1430300912 | J159: 0
A160: Albania | B160: 0 | C160: 0.115 | D160: 0 | E160: 0.00014991834 | F160: 0.00014991834 | G160: 0 | H160: 0 | I160: 0 | J160: 0
A161: Andorra | B161: 0 | C161: 0.37 | D161: 0.399 | E161: 0 | F161: 0 | G161: 0 | H161: 0 | I161: 0 | J161: 0
A162: Armenia | B162: 0.05413131427 | C162: 0.3156135519 | D162: 0.1520910973 | E162: 0 | F162: 0 | G162: 0 | H162: 0 | I162: 0 | J162: 0
A163: Azerbaijan | B163: 0 | C163: 0.35 | D163: 0 | E163: 5.5882e-07 | F163: 5.5882e-07 | G163: 0 | H163: 0 | I163: 0 | J163: 0
A164: Belarus | B164: 0.05 | C164: 0.28 | D164: 0 | E164: 0.1608493875 | F164: 0.1272790875 | G164: 0 | H164: 0 | I164: 0 | J164: 0
A165: Bosnia & Herzegovina | B165: 0 | C165: 0.03 | D165: 0 | E165: 0.00094705384 | F165: 0.00094705384 | G165: 0 | H165: 0 | I165: 0 | J165: 0
A166: Georgia | B166: 0 | C166: 0.15 | D166: 0 | E166: 0.00093609162 | F166: 0.00093609162 | G166: 0 | H166: 0 | I166: 0 | J166: 0
A167: Iceland | B167: 0.15 | C167: 0.4 | D167: 0 | E167: 0 | F167: 0 | G167: 0 | H167: 0 | I167: 0 | J167: 0
A168: Kazakhstan | B168: 0.05 | C168: 0.15 | D168: 0 | E168: 0.042 | F168: 0.032 | G168: 0 | H168: 0 | I168: 0 | J168: 0
A169: Kosovo | B169: 0 | C169: 0 | D169: 0 | E169: 0 | F169: 0 | G169: 0 | H169: 0 | I169: 0 | J169: 0
A170: Kyrgyzstan | B170: 0 | C170: 0.08333333333 | D170: 0 | E170: 0 | F170: 0 | G170: 0 | H170: 0 | I170: 0 | J170: 0
A171: Liechtenstein | B171: 0.2 | C171: 0.4 | D171: 0 | E171: 0 | F171: 0 | G171: 0 | H171: 0 | I171: 0 | J171: 0
A172: Macedonia | B172: 0.2479889283 | C172: 0.3 | D172: 0 | E172: 0.0002566599 | F172: 0 | G172: 0 | H172: 0 | I172: 0 | J172: 0
A173: Moldova | B173: 0.25 | C173: 0.64 | D173: 0 | E173: 0.00021791268 | F173: 4.648887e-05 | G173: 5.3965e-05 | H173: 0 | I173: 0 | J173: 0
A174: Montenegro | B174: 0 | C174: 0.3 | D174: 0 | E174: 6.527922e-05 | F174: 6.527922e-05 | G174: 0 | H174: 0 | I174: 0 | J174: 0
A175: Norway | B175: 0.3 | C175: 0.4 | D175: 1 | E175: 0.0008644245 | F175: 6.922e-05 | G175: 0.00060487651 | H175: 0.00011 | I175: 0.0011 | J175: 0
A176: Russian Federation | B176: 0.25 | C176: 0.25 | D176: 0 | E176: 0.01495 | F176: 0 | G176: 0 | H176: 0 | I176: 0 | J176: 0
A177: San Marino | B177: 0 | C177: 0.2 | D177: 0 | E177: 0 | F177: 0 | G177: 0 | H177: 0 | I177: 0 | J177: 0
A178: Serbia | B178: 0.1066915551 | C178: 0.098 | D178: 0 | E178: 0.00021903 | F178: 0.000107750708 | G178: 0 | H178: 0 | I178: 0 | J178: 0
A179: Switzerland | B179: 0.2 | C179: 0.5 | D179: 0 | E179: 0.00105493337 | F179: 0.00021085197 | G179: 0 | H179: 0 | I179: 0.0020516655 | J179: 0.0020516655
A180: Tajikistan | B180: 0 | C180: 0.2 | D180: 0 | E180: 5.83303e-06 | F180: 5.83303e-06 | G180: 0 | H180: 0 | I180: 0 | J180: 0
A181: Turkey | B181: 0 | C181: 0.21 | D181: 0 | E181: 0.00230268591 | F181: 0.00230268591 | G181: 0 | H181: 0 | I181: 0 | J181: 0
A182: Turkmenistan | B182: 0 | C182: 0 | D182: 0 | E182: 0 | F182: 0 | G182: 0 | H182: 0 | I182: 0 | J182: 0
A183: Ukraine | B183: 0.2 | C183: 0.6 | D183: 0 | E183: 0.00494016454 | F183: 0.00056125214 | G183: 0 | H183: 0 | I183: 0 | J183: 0
A184: Uzbekistan | B184: 0 | C184: 0 | D184: 0 | E184: 0 | F184: 0 | G184: 0 | H184: 0 | I184: 0 | J184: 0
A185: Bahrain | B185: 0 | C185: 0 | D185: 0 | E185: 0 | F185: 0 | G185: 0 | H185: 0 | I185: 0 | J185: 0
A186: Iran | B186: 0 | C186: 0.04 | D186: 0 | E186: 0 | F186: 0 | G186: 0 | H186: 0 | I186: 0 | J186: 0
A187: Iraq | B187: 0 | C187: 0.01 | D187: 0 | E187: 0 | F187: 0 | G187: 0 | H187: 0 | I187: 0 | J187: 0
A188: Israel | B188: 0.2 | C188: 0.26 | D188: 0 | E188: 0 | F188: 0 | G188: 0 | H188: 0 | I188: 0 | J188: 0
A189: Israel | B189: 0.2 | C189: 0 | D189: 0 | E189: 0 | F189: 0 | G189: 0 | H189: 0 | I189: 0 | J189: 0
A190: Jordan | B190: 0 | C190: 0.015 | D190: 0 | E190: 0 | F190: 0 | G190: 0 | H190: 0 | I190: 0 | J190: 0
A191: Kuwait | B191: 0 | C191: 0 | D191: 0 | E191: 0 | F191: 0 | G191: 0 | H191: 0 | I191: 0 | J191: 0
A192: Lebanon | B192: 0 | C192: 0.15 | D192: 0 | E192: 0 | F192: 0 | G192: 0 | H192: 0 | I192: 0 | J192: 0
A193: Oman | B193: 0 | C193: 0.02 | D193: 0 | E193: 0 | F193: 0 | G193: 0 | H193: 0 | I193: 0 | J193: 0
A194: Palestine | B194: 0 | C194: 0 | D194: 0 | E194: 0 | F194: 0 | G194: 0 | H194: 0 | I194: 0 | J194: 0
A195: Qatar | B195: 0 | C195: 0 | D195: 0 | E195: 0 | F195: 0 | G195: 0 | H195: 0 | I195: 0 | J195: 0
A196: Saudi Arabia | B196: 0 | C196: 0 | D196: 0 | E196: 0 | F196: 0 | G196: 0 | H196: 0 | I196: 0 | J196: 0
A197: Syria | B197: 0 | C197: 0 | D197: 0 | E197: 0 | F197: 0 | G197: 0 | H197: 0 | I197: 0 | J197: 0
A198: United Arab Emirates | B198: 0 | C198: 0 | D198: 0 | E198: 0 | F198: 0 | G198: 0 | H198: 0 | I198: 0 | J198: 0
A199: Yemen | B199: 0 | C199: 0.01 | D199: 0 | E199: 0 | F199: 0 | G199: 0 | H199: 0 | I199: 0 | J199: 0
A200: Total | E200: =SUM(E4:E199) -> 1.707950175 | F200: =SUM(F4:F199) -> 1.045133241 | G200: =SUM(G4:G199) -> 0.6466867174 | H200: 0.1767702424 | I200: 2.711021482 | J200: 0.767607081
... 5 more rows
